{"text_format":"1","workbook":"xlsx","n_sheets":5,"sheets":["入力","スコア","リベコン","結果集計表","構成メンバー表（小）"],"not_rendered":{"charts":0,"images":1,"macros":1,"external_links":0,"defined_names":4,"comments":0,"pivot_tables":0},"unopened":[],"bounds":{"document_bytes":16777216,"sheet_cells":100000,"rows_first":2000,"rows_last":500,"rows_between":2000,"halvings":0,"cell_chars":16384,"cell_head_chars":4096},"cells_cut":0,"cells_raw":0,"read":"whole","date_system":"1900"}

{"sheet":"入力","index":0,"n_rows":36,"n_cols":13,"rows_kept":36,"cut":false,"hidden":false,"merged":[[3,1,3,8],[5,1,5,3],[7,1,7,5],[0,0,0,11],[22,1,31,5]]}
["高体連バレーボール部東播支部　公式記録用紙印刷シート"]
[]
[]
["大会名","令和7年度　東播高等学校バレーボール秋季リーグ戦大会",null,null,null,null,null,null,null,null,null,"★必須"]
[null,null,null,null,null,null,null,null,null,null,null,1]
["開催地","加古川市",null,null,null,"←市町村"]
[]
["体育館",null,null,null,null,null,"←学校名",null,"コート名","A","手前","1部"]
[null,null,null,null,null,null,null,null,null,"B","奥","2部"]
["日にち",{"$f":"YEAR(TODAY())","v":2025},"年",4,"月",16,"日","※初日を入力",null,"※　リーグ戦なら○部を選択",null,"3部"]
[null,null,null,null,null,null,null,null,null,null,null,"4部"]
["試合番号",1,null,{"$f":"IF(B12<>\"\",VLOOKUP(B12,$H$17:$L$36,2,FALSE)&\"-\"&VLOOKUP(B12,$H$17:$L$36,3,FALSE),\"\")","v":"2部-1"},null,{"$f":"IF(B12<>\"\",VLOOKUP(B12,$H$17:$L$36,4,FALSE),\"\")","v":"明石商業"},"-",{"$f":"IF(B12<>\"\",VLOOKUP(B12,$H$17:$L$36,5,FALSE),\"\")","v":"明石城西"},null,null,null,"A"]
[null,null,null,null,null,null,null,null,null,null,null,"B"]
["性別","男子",false,"女子",false," ←　どちらか1つを選択してください",null,null,null,null,null,"C"]
[null,null,null,null,null,null,null,null,null,null,null,"D"]
["印刷シート",null,null,null,null,"組合せ入力",null,null,"コート","試合番号","A","B"]
[null,null,"スコアシート",true,null,null,null,1,"2部",1,"明石商業","明石城西",{"$f":"I17&\"-\"&J17","v":"2部-1"}]
[null,null,null,null,null,null,null,2,"2部",2,"加古川北","明石北",{"$f":"I18&\"-\"&J18","v":"2部-2"}]
[null,null,"リベロコントロールシート",true,null,null,null,3,"2部",3,"明石","明石城西","2部-3"]
[null,null,null,null,null,null,null,4,"2部",4,"明石商業","明石北","2部-4"]
[null,null,"記録集計表",true,null,null,null,5,"2部",5,"加古川北","明石","2部-5"]
[null,null,null,null,null,null,null,6,"2部",6,"明石北","明石城西","2部-6"]
[null,"★使い方★\n１．必要事項をすべて入力\n２．印刷ボタンを押す\n３．組み合わせで入力されている\n　　分だけ印刷される。\n",null,null,null,null,null,7,"3部",1,"東播磨","明石西","3部-1"]
[null,null,null,null,null,null,null,8,"3部",2,"明石南","三木","3部-2"]
[null,null,null,null,null,null,null,9,"3部",3,"小野","明石西","3部-3"]
[null,null,null,null,null,null,null,10,"3部",4,"東播磨","三木","3部-4"]
[null,null,null,null,null,null,null,11,"3部",5,"明石南","小野","3部-5"]
[null,null,null,null,null,null,null,12,"3部",6,"三木","明石西","3部-6"]
[null,null,null,null,null,null,null,13,"2部",7,"明石商業","明石","2部-7"]
[null,null,null,null,null,null,null,14,"2部",8,"加古川北","明石城西","2部-8"]
[null,null,null,null,null,null,null,15,"2部",9,"明石","明石北","2部-9"]
[null,null,null,null,null,null,null,16,"2部",10,"加古川北","明石商業","2部-10"]
[null,null,null,null,null,null,null,17,"3部",7,"東播磨","小野","3部-7"]
[null,null,null,null,null,null,null,18,"3部",8,"明石南","明石西","3部-8"]
[null,null,null,null,null,null,null,19,"3部",9,"小野","三木","3部-9"]
[null,null,null,null,null,null,null,20,"3部",10,"明石南","東播磨","3部-10"]

{"sheet":"スコア","index":1,"n_rows":105,"n_cols":202,"rows_kept":105,"cut":false,"hidden":true,"merged":[[11,67,12,69],[8,108,9,112],[8,99,9,103],[8,86,9,94],[12,159,13,204],[34,69,34,70],[35,69,36,71],[66,69,66,70],[67,69,68,71],[98,23,98,24],[99,23,100,25],[36,164,37,181],[38,164,39,181],[40,164,41,181],[42,164,43,181],[44,164,45,181],[46,164,47,181],[48,164,49,181],[66,159,67,163],[68,159,69,163],[66,182,67,186],[68,182,69,186],[66,164,67,181],[68,164,69,181],[66,187,67,204],[68,187,69,204],[42,187,43,204],[44,187,45,204],[46,187,47,204],[48,187,49,204],[50,187,51,204],[52,187,53,204],[54,187,55,204],[56,187,57,204],[58,187,59,204],[60,187,61,204],[62,187,63,204],[50,164,51,181],[52,164,53,181],[54,164,55,181],[56,164,57,181],[58,164,59,181],[60,164,61,181],[46,182,47,186],[48,182,49,186],[50,182,51,186],[52,182,53,186],[54,182,55,186],[56,182,57,186],[58,182,59,186],[60,182,61,186],[62,182,63,186],[42,159,43,163],[44,159,45,163],[46,159,47,163],[48,159,49,163],[50,159,51,163],[52,159,53,163],[54,159,55,163],[56,159,57,163],[58,159,59,163],[60,159,61,163],[62,159,63,163],[62,164,63,181],[85,155,86,156],[104,149,106,156],[83,149,84,150],[83,151,84,152],[83,153,84,154],[83,155,84,156],[65,145,68,156],[102,181,103,184],[87,149,88,150],[87,151,88,152],[104,140,104,141],[104,143,104,144],[105,140,106,142],[105,143,106,145],[75,163,77,179],[104,134,104,135],[104,137,104,138],[105,128,106,130],[105,131,106,133],[105,134,106,136],[105,137,106,139],[88,167,90,170],[87,153,88,154],[105,146,106,148],[98,146,98,147],[104,146,104,147],[99,146,100,148],[101,146,101,147],[86,143,88,148],[89,149,90,150],[95,151,96,152],[99,143,100,145],[95,143,97,148],[102,140,103,142],[67,109,68,110],[67,111,68,112],[67,113,68,114],[47,117,48,156],[49,124,52,136],[59,109,60,110],[59,111,60,112],[59,113,60,114],[53,111,54,112],[27,147,28,156],[29,147,30,156],[31,147,32,156],[33,147,34,156],[35,147,36,156],[51,111,52,112],[51,113,52,114],[63,113,64,114],[27,132,28,136],[29,132,30,136],[31,132,32,136],[33,132,34,136],[35,132,36,136],[37,132,38,136],[39,127,40,131],[39,132,40,136],[39,137,40,141],[39,142,40,146],[29,113,30,114],[63,111,64,112],[57,117,60,123],[35,113,36,114],[33,113,34,114],[55,105,56,106],[55,107,56,108],[55,109,56,110],[55,111,56,112],[55,113,56,114],[57,113,58,114],[57,107,58,108],[57,109,58,110],[57,111,58,112],[15,137,16,156],[17,137,18,156],[19,147,20,156],[21,147,22,156],[23,147,24,156],[25,147,26,156],[19,142,20,146],[19,137,20,141],[19,127,20,131],[21,132,22,136],[23,132,24,136],[25,132,26,136],[25,113,26,114],[31,109,32,110],[31,111,32,112],[31,113,32,114],[27,109,28,110],[27,111,28,112],[27,113,28,114],[33,105,34,106],[29,105,30,106],[29,107,30,108],[29,109,30,110],[59,107,60,108],[65,105,66,106],[65,107,66,108],[65,109,66,110],[65,111,66,112],[65,113,66,114],[63,105,64,106],[61,105,62,106],[61,107,62,108],[61,109,62,110],[61,111,62,112],[61,113,62,114],[57,87,59,92],[57,93,59,98],[63,99,65,104],[60,99,62,104],[66,102,66,103],[63,87,65,92],[66,90,66,91],[59,105,60,106],[63,93,65,98],[47,105,50,114],[47,59,50,68],[51,59,52,60],[51,61,52,62],[51,63,52,64],[51,65,52,66],[75,99,75,100],[79,67,82,70],[79,65,80,66],[81,57,82,58],[79,53,82,56],[81,65,82,66],[79,57,80,58],[79,59,82,64],[75,102,75,103],[70,99,71,101],[70,102,71,104],[72,69,72,70],[72,72,72,73],[72,75,72,76],[72,78,72,79],[76,56,77,58],[76,78,77,80],[76,81,77,83],[76,84,77,86],[75,69,75,70],[75,72,75,73],[75,75,75,76],[75,78,75,79],[75,81,75,82],[75,84,75,85],[73,78,74,80],[40,23,40,24],[38,23,39,25],[38,38,39,40],[31,87,33,92],[31,93,33,98],[31,99,33,104],[37,50,37,51],[31,23,33,28],[31,81,33,86],[31,41,33,46],[55,67,56,68],[53,59,54,60],[53,61,54,62],[53,63,54,64],[34,26,34,27],[35,26,36,28],[41,26,42,28],[35,23,36,25],[34,23,34,24],[37,23,37,24],[37,26,37,27],[38,26,39,28],[40,26,40,27],[41,23,42,25],[35,29,36,31],[41,38,42,40],[40,41,40,42],[43,50,43,51],[38,50,39,52],[40,50,40,51],[41,50,42,52],[44,29,45,31],[53,107,54,108],[53,109,54,110],[53,113,54,114],[53,65,54,66],[53,67,54,68],[55,59,56,60],[61,65,62,66],[63,65,64,66],[63,67,64,68],[65,63,66,64],[65,65,66,66],[65,67,66,68],[57,105,58,106],[51,35,53,40],[15,33,18,38],[37,35,37,36],[51,67,52,68],[51,105,52,106],[51,107,52,108],[51,109,52,110],[53,105,54,106],[57,59,58,60],[57,61,58,62],[57,63,58,64],[57,65,58,66],[57,67,58,68],[63,107,64,108],[63,109,64,110],[44,72,45,74],[44,38,45,40],[44,41,45,43],[44,50,45,52],[102,80,103,82],[102,83,103,85],[102,71,103,73],[102,89,103,91],[104,122,104,123],[104,125,104,126],[104,128,104,129],[104,131,104,132],[102,128,103,130],[102,131,103,133],[102,122,103,124],[102,125,103,127],[105,122,106,124],[105,125,106,127],[105,113,106,115],[105,116,106,118],[105,119,106,121],[104,113,104,114],[104,116,104,117],[104,119,104,120],[104,80,104,81],[104,83,104,84],[104,101,106,108],[99,77,100,79],[99,80,100,82],[104,23,104,24],[104,26,104,27],[104,29,104,30],[104,32,104,33],[104,35,104,36],[104,38,104,39],[101,65,101,66],[101,68,101,69],[104,68,104,69],[101,50,101,51],[104,65,104,66],[101,59,103,64],[104,59,106,64],[102,53,103,55],[104,53,104,54],[105,65,106,67],[104,77,104,78],[105,68,106,70],[105,71,106,73],[105,74,106,76],[105,77,106,79],[105,56,106,58],[102,56,103,58],[102,65,103,67],[102,68,103,70],[102,35,103,37],[102,38,103,40],[102,41,103,43],[102,44,103,46],[104,74,104,75],[101,77,101,78],[101,80,101,81],[105,35,106,37],[105,38,106,40],[105,41,106,43],[105,44,106,46],[105,47,106,49],[105,50,106,52],[105,98,106,100],[104,98,104,99],[101,95,101,96],[102,92,103,94],[105,95,106,97],[101,92,101,93],[105,92,106,94],[102,95,103,97],[104,92,104,93],[104,95,104,96],[102,86,103,88],[104,89,104,90],[104,86,104,87],[105,80,106,82],[105,83,106,85],[105,86,106,88],[101,83,101,84],[101,98,101,99],[104,71,104,72],[104,50,104,51],[105,89,106,91],[101,86,101,87],[102,74,103,76],[102,77,103,79],[98,77,98,78],[98,86,98,87],[98,89,98,90],[98,92,98,93],[95,83,97,88],[95,89,97,94],[98,80,98,81],[98,83,98,84],[86,65,88,70],[90,61,90,62],[89,95,91,100],[92,89,94,94],[89,83,91,88],[92,83,94,88],[89,77,91,82],[73,81,74,83],[73,84,74,86],[73,99,74,101],[76,99,77,101],[73,96,74,98],[75,93,75,94],[73,87,74,89],[73,90,74,92],[75,90,75,91],[92,77,94,82],[83,101,84,102],[89,89,91,94],[79,85,82,90],[79,101,82,108],[86,77,88,82],[79,91,82,94],[19,23,21,28],[19,29,21,34],[69,35,69,36],[69,38,69,39],[67,26,68,28],[57,23,59,28],[63,23,65,28],[54,23,56,28],[67,29,68,31],[67,32,68,34],[66,23,66,24],[66,26,66,27],[66,29,66,30],[66,32,66,33],[43,23,43,24],[41,35,42,37],[47,23,50,26],[47,27,50,32],[44,23,45,25],[51,29,53,34],[43,26,43,27],[57,29,59,34],[34,35,34,36],[35,35,36,37],[40,32,40,33],[41,32,42,34],[43,32,43,33],[43,29,43,30],[40,38,40,39],[44,35,45,37],[43,35,43,36],[43,38,43,39],[85,167,87,170],[85,163,87,166],[85,151,86,152],[89,153,90,154],[89,155,90,156],[76,69,77,71],[93,151,94,152],[93,153,94,154],[93,155,94,156],[70,90,71,92],[70,93,71,95],[70,69,71,71],[70,72,71,74],[72,90,72,91],[72,93,72,94],[73,93,74,95],[72,81,72,82],[94,163,96,166],[86,71,88,76],[72,142,74,143],[69,105,71,114],[72,105,74,114],[73,69,74,71],[76,87,77,89],[76,90,77,92],[91,163,93,166],[95,77,97,82],[89,65,91,70],[76,93,77,95],[69,130,71,131],[72,130,74,131],[75,130,77,131],[10,94,10,97],[11,77,12,82],[57,99,59,104],[66,72,66,73],[41,117,45,156],[28,87,30,92],[28,69,30,74],[34,81,34,82],[35,81,36,83],[34,87,34,88],[35,96,36,98],[34,84,34,85],[40,87,40,88],[38,87,39,89],[61,117,64,123],[65,117,68,123],[65,124,68,136],[65,137,68,144],[49,145,52,156],[53,137,56,144],[53,145,56,156],[57,137,60,144],[57,124,60,136],[57,145,60,156],[61,124,64,136],[61,137,64,144],[61,145,64,156],[67,84,68,86],[54,81,56,86],[49,117,52,123],[15,95,18,98],[15,99,18,104],[76,75,77,77],[83,77,85,82],[98,53,98,54],[86,47,88,52],[94,171,96,175],[95,149,96,150],[91,149,92,150],[91,151,92,152],[91,153,92,154],[91,155,92,156],[88,193,90,196],[88,197,90,200],[99,68,100,70],[92,65,94,70],[99,71,100,73],[97,163,99,166],[91,159,93,162],[94,159,96,162],[100,159,101,173],[97,167,99,170],[97,171,99,175],[91,167,93,170],[94,167,96,170],[97,188,99,192],[97,193,99,196],[97,197,99,200],[97,159,99,162],[100,174,101,188],[98,143,98,144],[99,137,100,139],[99,140,100,142],[98,65,98,66],[101,38,101,39],[95,35,97,40],[105,53,106,55],[104,47,104,48],[101,56,101,57],[99,50,100,52],[99,53,100,55],[89,47,91,52],[98,50,98,51],[92,47,94,52],[92,53,94,58],[102,29,103,31],[92,71,94,76],[101,71,101,72],[101,74,101,75],[99,65,100,67],[92,29,94,34],[92,35,94,40],[98,74,98,75],[98,71,98,72],[98,68,98,69],[89,53,91,58],[91,61,91,62],[89,61,89,62],[92,61,92,62],[93,61,93,62],[94,61,94,62],[95,61,95,62],[96,61,96,62],[98,56,98,57],[99,74,100,76],[83,0,97,2],[83,3,85,17],[86,3,88,17],[89,3,97,9],[89,10,91,17],[92,10,97,17],[51,0,65,2],[51,3,53,17],[54,3,56,17],[57,3,65,9],[57,10,59,17],[60,10,65,17],[66,0,77,9],[66,10,68,13],[66,14,68,17],[75,96,75,97],[72,56,72,57],[86,53,88,58],[72,44,72,45],[69,10,71,13],[69,14,71,17],[47,18,77,22],[47,57,48,58],[76,29,77,31],[73,23,74,25],[72,10,74,13],[95,23,97,28],[95,29,97,34],[89,41,91,46],[92,41,94,46],[72,23,72,24],[76,23,77,25],[19,3,21,17],[19,0,33,2],[28,10,33,17],[25,10,27,17],[43,10,45,13],[37,10,39,13],[40,10,42,13],[37,14,39,17],[40,14,42,17],[25,3,33,9],[22,3,24,17],[34,14,36,17],[34,10,36,13],[34,0,45,9],[43,14,45,17],[72,14,74,17],[75,10,77,13],[75,14,77,17],[99,134,100,136],[99,98,100,100],[101,122,101,123],[93,101,94,102],[89,143,91,148],[98,44,98,45],[98,35,98,36],[98,41,98,42],[98,38,98,39],[101,23,101,24],[101,26,101,27],[101,14,103,17],[95,65,97,70],[105,26,106,28],[104,41,104,42],[99,56,100,58],[101,41,101,42],[95,95,97,100],[101,29,101,30],[101,32,101,33],[105,29,106,31],[105,32,106,34],[104,56,104,57],[104,44,104,45],[95,53,97,58],[89,71,91,76],[95,71,97,76],[98,59,100,64],[95,47,97,52],[99,26,100,28],[99,29,100,31],[101,35,101,36],[97,101,97,102],[101,137,101,138],[98,95,98,96],[98,98,98,99],[98,116,98,117],[95,131,97,136],[95,125,97,130],[92,137,94,142],[99,128,100,130],[98,137,98,138],[98,0,106,9],[102,23,103,25],[102,50,103,52],[104,10,106,13],[104,14,106,17],[79,18,106,22],[69,142,71,143],[75,132,77,141],[86,137,88,142],[69,132,74,141],[102,134,103,136],[101,10,103,13],[105,23,106,25],[98,10,100,13],[98,14,100,17],[101,44,101,45],[101,131,101,132],[98,131,98,132],[98,134,98,135],[101,116,101,117],[101,140,101,141],[98,140,98,141],[99,86,100,88],[99,83,100,85],[86,83,88,88],[98,128,98,129],[99,113,100,115],[99,95,100,97],[101,119,101,120],[101,125,101,126],[101,128,101,129],[101,113,101,114],[99,125,100,127],[86,89,88,94],[92,95,94,100],[89,103,90,104],[91,103,92,104],[83,83,85,88],[83,89,85,94],[91,107,92,108],[98,125,98,126],[95,103,96,104],[93,107,94,108],[95,101,96,102],[101,101,103,108],[85,103,86,104],[87,103,88,104],[99,116,100,118],[99,119,100,121],[99,122,100,124],[98,113,98,114],[89,113,91,118],[89,119,91,124],[83,105,84,106],[76,72,77,74],[76,47,77,49],[69,53,69,54],[70,56,71,58],[69,59,71,68],[67,59,68,60],[67,61,68,62],[67,63,68,64],[67,65,68,66],[67,67,68,68],[83,65,85,70],[83,71,85,76],[75,38,75,39],[60,29,62,34],[63,29,65,34],[63,35,65,40],[69,23,69,24],[69,26,69,27],[69,75,69,76],[70,23,71,25],[70,26,71,28],[69,29,69,30],[70,29,71,31],[84,61,84,62],[85,61,85,62],[79,23,82,26],[79,27,82,32],[75,23,75,24],[70,32,71,34],[70,35,71,37],[70,38,71,40],[75,59,77,68],[60,23,62,28],[51,23,53,28],[67,23,68,25],[72,53,72,54],[44,53,45,55],[44,69,45,71],[44,26,45,28],[86,61,86,62],[87,61,87,62],[57,53,59,58],[83,23,85,28],[83,29,85,34],[86,23,88,28],[75,53,75,54],[75,56,75,57],[76,53,77,55],[72,26,72,27],[72,29,72,30],[72,32,72,33],[73,53,74,55],[72,59,74,68],[72,47,72,48],[72,50,72,51],[73,47,74,49],[76,50,77,52],[86,41,88,46],[75,41,75,42],[72,41,72,42],[73,41,74,43],[88,61,88,62],[73,50,74,52],[66,35,66,36],[66,38,66,39],[69,44,69,45],[69,32,69,33],[60,41,62,46],[41,72,42,74],[43,72,43,73],[37,72,37,73],[38,72,39,74],[43,69,43,70],[70,47,71,49],[54,41,56,46],[54,69,56,74],[49,69,50,70],[59,59,60,60],[59,61,60,62],[59,63,60,64],[59,65,60,66],[59,67,60,68],[60,35,62,40],[67,35,68,37],[67,38,68,40],[73,56,74,58],[54,29,56,34],[73,32,74,34],[73,44,74,46],[72,35,72,36],[72,38,72,39],[70,41,71,43],[41,29,42,31],[54,35,56,40],[22,29,24,34],[28,41,30,46],[28,47,30,52],[28,35,30,40],[31,47,33,52],[31,35,33,40],[34,38,34,39],[35,38,36,40],[34,44,34,45],[35,44,36,46],[25,53,27,58],[22,53,24,58],[43,47,43,48],[28,29,30,34],[31,29,33,34],[28,53,30,58],[44,47,45,49],[34,32,34,33],[35,32,36,34],[44,32,45,34],[37,29,37,30],[38,29,39,31],[40,29,40,30],[34,29,34,30],[34,53,34,54],[37,47,37,48],[38,47,39,49],[40,47,40,48],[41,47,42,49],[41,44,42,46],[15,69,16,70],[17,69,18,70],[15,71,18,74],[40,35,40,36],[38,69,39,71],[37,44,37,45],[33,67,34,68],[34,72,34,73],[35,72,36,74],[43,56,43,57],[44,56,45,58],[19,67,20,68],[21,67,22,68],[23,67,24,68],[17,57,18,58],[22,69,24,74],[25,23,27,28],[22,23,24,28],[28,23,30,28],[27,67,28,68],[29,67,30,68],[19,65,20,66],[25,29,27,34],[19,35,21,40],[19,41,21,46],[22,41,24,46],[35,50,36,52],[37,56,37,57],[34,41,34,42],[41,41,42,43],[40,44,40,45],[43,41,43,42],[22,35,24,40],[25,47,27,52],[25,35,27,40],[35,41,36,43],[35,56,36,58],[34,56,34,57],[35,59,36,60],[31,59,32,60],[31,53,33,58],[34,47,34,48],[35,47,36,49],[35,53,36,55],[41,69,42,71],[37,69,37,70],[44,44,45,46],[43,44,43,45],[57,35,59,40],[51,41,53,46],[57,41,59,46],[51,47,53,52],[57,47,59,52],[51,53,53,58],[49,57,50,58],[47,53,50,56],[47,33,50,38],[54,53,56,58],[51,69,53,74],[29,61,30,62],[31,61,32,62],[44,75,45,77],[38,84,39,86],[41,81,42,83],[41,75,42,77],[31,67,32,68],[28,81,30,86],[47,71,50,74],[33,65,34,66],[35,75,36,77],[28,75,30,80],[31,75,33,80],[34,75,34,76],[51,75,53,80],[54,75,56,80],[47,69,48,70],[43,78,43,79],[35,65,36,66],[60,47,62,52],[60,53,62,58],[63,53,65,58],[60,87,62,92],[61,59,62,60],[61,61,62,62],[61,63,62,64],[60,75,62,80],[61,67,62,68],[63,59,64,60],[65,61,66,62],[54,47,56,52],[55,61,56,62],[55,63,56,64],[55,65,56,66],[57,69,59,74],[60,69,62,74],[66,50,66,51],[66,53,66,54],[66,78,66,79],[66,87,66,88],[66,84,66,85],[66,81,66,82],[63,69,65,74],[63,75,65,80],[63,61,64,62],[57,81,59,86],[57,75,59,80],[63,63,64,64],[67,72,68,74],[69,87,69,88],[67,41,68,43],[67,44,68,46],[70,50,71,52],[70,53,71,55],[69,78,69,79],[69,81,69,82],[69,41,69,42],[66,75,66,76],[69,69,69,70],[69,50,69,51],[66,44,66,45],[67,81,68,83],[69,47,69,48],[69,56,69,57],[70,44,71,46],[65,59,66,60],[66,56,66,57],[63,47,65,52],[63,41,65,46],[66,41,66,42],[66,47,66,48],[67,47,68,49],[67,50,68,52],[67,53,68,55],[63,81,65,86],[89,35,91,40],[83,35,85,40],[76,41,77,43],[76,44,77,46],[79,33,82,38],[73,35,74,37],[73,38,74,40],[83,41,85,46],[75,44,75,45],[76,32,77,34],[76,35,77,37],[86,35,88,40],[86,29,88,34],[92,23,94,28],[102,26,103,28],[95,41,97,46],[75,50,75,51],[75,29,75,30],[75,32,75,33],[76,26,77,28],[75,26,75,27],[75,47,75,48],[75,35,75,36],[73,26,74,28],[73,29,74,31],[98,26,98,27],[98,29,98,30],[98,32,98,33],[89,29,91,34],[89,23,91,28],[102,32,103,34],[99,47,100,49],[98,47,98,48],[99,44,100,46],[102,47,103,49],[76,38,77,40],[99,32,100,34],[101,47,101,48],[83,47,85,52],[83,53,85,58]],"merged_total":1501,"flags":["merged_cut"]}
["大会名"]
[null,null,null,null,null,null,null,null,null,null,null,null,null,{"$f":"IF(入力!$B$4=0,\"\",入力!$B$4)","v":"令和7年度　東播高等学校バレーボール秋季リーグ戦大会"}]
[]
[]
[]
[]
["開催地",null,null,null,null,null,null,null,null,null,null,null,null,null,null,null,null,null,null,null,null,null,null,null,null,null,null,null,null,null,null,null,null,null,null,null,null,null,null,null,null,null,null,null,null,null,null,null,null,null,null,null,null,null,null,null,null,null,null,null,null,null,"試合番号",null,null,null,null,null,null,null,null,null,null,null,null,null,null,null,null,null,null,null,null,null,null,"開催日",null,null,null,null,null,null,null,null,null,null,null,null,null,null,null,null,null,null,null,null,null,null,null,null,null,null,null,null,null,null,null,null,"試合設定時刻"]
[null,null,null,null,null,null,null,null,null,null,null,null,{"$f":"IF(入力!$B$6=0,\"\",入力!$B$6)","v":"加古川市"},null,null,null,null,null,null,null,null,null,null,null,null,null,null,null,null,null,null,null,null,null,null,null,null,null,null,null,null,null,null,null,null,null,null,null,null,null,null,null,null,null,null,null,null,null,null,null,null,null,null,null,null,null,null,null,null,null,{"$f":"IF(入力!$D$12=0,\"\",入力!$D$12)","v":"2部-1"},null,null,null,null,null,null,null,null,null,null,null,null,null,null,null,null,null,null,null,null,null,null,null,null,null,null,null,null,null,null,null,null,null,null,null,null,null,null,null,null,null,null,null,null,null,null,null,null,null,null,null,null,null,null,null,null,null,null,null,null,null,null,null,null,null,null,null,null,"："]
[null,null,null,null,null,null,null,null,null,null,null,null,null,null,null,null,null,null,null,null,null,null,null,null,null,null,null,null,null,null,null,null,null,null,null,null,null,null,null,null,null,null,null,null,null,null,null,null,null,null,null,null,null,null,null,null,null,null,null,null,null,null,null,null,null,null,null,null,null,null,null,null,null,null,null,null,null,null,null,null,null,null,null,null,null,null,{"$f":"IF(入力!$B$10=0,\"\",入力!$B$10)","v":2025},null,null,null,null,null,null,null,null,"年",null,null,null,{"$f":"IF(入力!$D$10=0,\"\",入力!$D$10)","v":4},null,null,null,null,"月",null,null,null,{"$f":"IF(入力!$F$10=0,\"\",入力!$F$10)","v":16},null,null,null,null,"日"]
[]
["会場名",null,null,null,null,null,null,null,null,null,null,null,null,null,null,null,null,null,null,null,null,null,null,null,null,null,null,null,null,null,null,null,null,null,null,null,null,null,null,null,null,null,null,null,null,null,null,null,null,null,null,null,null,null,null,null,null,null,null,null,null,null,null,null,null,null,null,null,null,null,null,null,null,null,null,null,null,null,null,null,null," ",null,null,null,"対戦チーム",null,null,null,null,null,null,null,null,"AorB",null,null,null,null,null,null,null,null,null,null,null,null,null,null,null,null,null,null,null,null,null,null,null,null,null,null,null,null,null,null,null,null,null,null,null,null,null,null,null,null,null,null,null,null,null,null,null,null,null,null,null,null,null,null,null,null,null,null,"AorB"]
[null,null,null,null,null,null,null,null,null,null,null,null,{"$f":"IF(入力!$B$8=0,\"\",入力!$B$8)","v":""},null,null,null,null,null,null,null,null,null,null,null,null,null,null,null,null,null,null,null,null,null,null,null,null,null,null,null,null,null,null,null,null,null,null,null,null,null,null,null,null,null,null,null,null,null,null,null,"男子",null,null,null,null,null,null,null,null,null,null,null,null,null,null,null,null,"女子",null,null,null,null,null,null,null,null,null,null,null,null,null,null,null,null,null,null,null,null,null,null,{"$f":"IF(入力!$F$12=0,\"\",入力!$F$12)","v":"明石商業"},null,null,null,null,null,null,null,null,null,null,null,null,null,null,null,null,null,null,null,null,null,null,null,"対",null,null,null,null,{"$f":"IF(入力!$H$12=0,\"\",入力!$H$12)","v":"明石城西"}]
[null,null,null,null,null,null,null,null,null,null,null,null,null,null,null,null,null,null,null,null,null,null,null,null,null,null,null,null,null,null,null,null,null,null,null,null,null,null,null,null,null,null,null,null,null,null,null,null,null,null,null,null,null,null,null,null,null,null,null,null,null,null,null,null,null,null,null,null,null,null,null,null,null,null,null,null,null,null,null,null,null,null,null,null,null,null,null,null,null,null,null,null,null,null,null,null,null,null,null,null,null,null,null,null,null,null,null,null,null,null,null,null,null,null,null,null,null,null,null,null,null,null,null,null,null,null,null,null,null,null,null,null,null,null,null,null,null,null,null,null,null,null,null,null,null,null,null,null,null,null,null,null,null,null,null,null,null,null,null,"兵庫県高体連バレーボール部"]
[]
[]
[null,null,null,null,null,null,null,null,null,null,null,null,null,null,null,null,null,null,"第１セット",null,null,null,null,"開始",null,null,null,"：",null,null,null,null,null,"チーム",null,null,null,null,null,null,null,null,null,null,null,null,null,null,null,null,null,null,null,"A",null,null,null,"Ｓ ",null,"得  点",null,null,null,null,null,null,null,null,null,"Ｓ ",null,"B",null,null,null,null,null,null,null,null,null,null,null,null,null,null,null,null,null,"チーム",null,null,null,null,null,"終了",null,null,null,"：",null,null,null,null,null,"得  点",null,null,null,null,null,null,null,null,null,null,null,"罰　　　　則",null,null,null,null,null,null,null,null,null,null,null,null,null,null,null,null,null,null,null,"不 当 な 要 求",null,null,null,null,null,null,null,null,null,null,null,null,null,null,null,null,null,null,null,null,null,"【特記事項】"]
[]
[null,null,null,null,null,null,null,null,null,null,null,null,null,null,null,null,null,null,null,null,null,null,null,null,null,null,null,null,null,null,null,null,null,null,null,null,null,null,null,null,null,null,null,null,null,null,null,null,null,null,null,null,null,null,null,null,null,"Ｒ ",null,null,null,null,null,null,null,null,null,null,null,"Ｒ ",null,null,null,null,null,null,null,null,null,null,null,null,null,null,null,null,null,null,null,null,null,null,null,null,null,null,null,null,null,null,null,null,null,null,null,null,null,null,null,null,null,null,null,null,null,null,null,null,null,null,null,null,null,null,null,null,null,null,null,null,null,null,null,null,null,null,null," チーム Ａ  ： チーム Ｂ"]
[]
["チーム構成",null,null,"サービス順",null,null,null,null,null,null,null,null,null,null,null,null,null,null,null,null,null,null,null,"Ⅰ",null,null,null,null,null,"Ⅱ",null,null,null,null,null,"Ⅲ",null,null,null,null,null,"Ⅳ",null,null,null,null,null,"Ⅴ",null,null,null,null,null,"Ⅵ",null,null,null,null,null,1,null,10,null,19,null,28,null,37,null,"Ⅰ",null,null,null,null,null,"Ⅱ",null,null,null,null,null,"Ⅲ",null,null,null,null,null,"Ⅳ",null,null,null,null,null,"Ⅴ",null,null,null,null,null,"Ⅵ",null,null,null,null,null,1,null,10,null,19,null,28,null,37,null,null,null,"警告",null,null,null,null,"ﾍﾟﾅﾙﾃｨ",null,null,null,null,"退場",null,null,null,null,"失格",null,null,null,null,"Ａ：Ｂ",null,null,null,null,"セット",null,null,null,null,"スコア"]
[]
[null,null,null,null,null,null,null,null,null,null,null,null,null,null,null,null,null,null,null,null,null,null,null,null,null,null,null,null,null,null,null,null,null,null,null,null,null,null,null,null,null,null,null,null,null,null,null,null,null,null,null,null,null,null,null,null,null,null,null,2,null,11,null,20,null,29,null,38,null,null,null,null,null,null,null,null,null,null,null,null,null,null,null,null,null,null,null,null,null,null,null,null,null,null,null,null,null,null,null,null,null,null,null,null,null,2,null,11,null,20,null,29,null,38,null,null,null,null,null,null,null,null,null,null,null,null,null,null,null,null,null,null,null,null,null,null,null,null,null,null,null,null,null,null,null,null,null,"："]
[null,null,null,"スターティングプレーヤー"]
[null,null,null,null,null,null,null,null,null,null,null,null,null,null,null,null,null,null,null,null,null,null,null,null,null,null,null,null,null,null,null,null,null,null,null,null,null,null,null,null,null,null,null,null,null,null,null,null,null,null,null,null,null,null,null,null,null,null,null,3,null,12,null,21,null,30,null,39,null,null,null,null,null,null,null,null,null,null,null,null,null,null,null,null,null,null,null,null,null,null,null,null,null,null,null,null,null,null,null,null,null,null,null,null,null,3,null,12,null,21,null,30,null,39,null,null,null,null,null,null,null,null,null,null,null,null,null,null,null,null,null,null,null,null,null,null,null,null,null,null,null,null,null,null,null,null,null,"："]
[]
[null,null,null,"選　手\n交　代",null,null,null,null,null,null,"番号",null,null,null,null,null,null,null,null,null,null,null,null,null,null,null,null,null,null,null,null,null,null,null,null,null,null,null,null,null,null,null,null,null,null,null,null,null,null,null,null,null,null,null,null,null,null,null,null,4,null,13,null,22,null,31,null,40,null,null,null,null,null,null,null,null,null,null,null,null,null,null,null,null,null,null,null,null,null,null,null,null,null,null,null,null,null,null,null,null,null,null,null,null,null,4,null,13,null,22,null,31,null,40,null,null,null,null,null,null,null,null,null,null,null,null,null,null,null,null,null,null,null,null,null,null,null,null,null,null,null,null,null,null,null,null,null,"："]
[]
[null,null,null,null,null,null,null,null,null,null,null,null,null,null,null,null,null,null,null,null,null,null,null,null,null,null,null,null,null,null,null,null,null,null,null,null,null,null,null,null,null,null,null,null,null,null,null,null,null,null,null,null,null,null,null,null,null,null,null,5,null,14,null,23,null,32,null,41,null,null,null,null,null,null,null,null,null,null,null,null,null,null,null,null,null,null,null,null,null,null,null,null,null,null,null,null,null,null,null,null,null,null,null,null,null,5,null,14,null,23,null,32,null,41,null,null,null,null,null,null,null,null,null,null,null,null,null,null,null,null,null,null,null,null,null,null,null,null,null,null,null,null,null,null,null,null,null,"："]
[null,null,null,null,null,null,null,null,null,null,"交代時\n得　点",null,null,null,null,null,null,null,null,null,null,null,null,"：",null,null,null,null,null,"：",null,null,null,null,null,"：",null,null,null,null,null,"：",null,null,null,null,null,"：",null,null,null,null,null,"：",null,null,null,null,null,null,null,null,null,null,null,null,null,null,null,"：",null,null,null,null,null,"：",null,null,null,null,null,"：",null,null,null,null,null,"：",null,null,null,null,null,"：",null,null,null,null,null,"："]
[null,null,null,null,null,null,null,null,null,null,null,null,null,null,null,null,null,null,null,null,null,null,null,null,null,null,null,null,null,null,null,null,null,null,null,null,null,null,null,null,null,null,null,null,null,null,null,null,null,null,null,null,null,null,null,null,null,null,null,6,null,15,null,24,null,33,null,42,null,null,null,null,null,null,null,null,null,null,null,null,null,null,null,null,null,null,null,null,null,null,null,null,null,null,null,null,null,null,null,null,null,null,null,null,null,6,null,15,null,24,null,33,null,42,null,null,null,null,null,null,null,null,null,null,null,null,null,null,null,null,null,null,null,null,null,null,null,null,null,null,null,null,null,null,null,null,null,"：",null,null,null,null,null,null,null,null,null,null,null,"AorB",null,null,null,null,{"$f":"IF(入力!$F$12=0,\"\",入力!$F$12)","v":"明石商業"},null,null,null,null,null,null,null,null,null,null,null,null,null,null,null,null,null,null,null,null,null,{"$f":"IF(入力!$H$12=0,\"\",入力!$H$12)","v":"明石城西"},null,null,null,null,null,null,null,null,null,null,null,null,null,null,"AorB"]
[null,null,null,null,null,null,null,null,null,null,null,null,null,null,null,null,null,null,null,null,null,null,null,null,null,null,null,null,null,null,null,null,null,null,null,null,null,null,null,null,null,null,null,null,null,null,null,null,null,null,null,null,null,null,null,null,null,null,null,null,null,null,null,null,null,null,null,null,null,null,null,null,null,null,null,null,null,null,null,null,null,null,null,null,null,null,null,null,null,null,null,null,null,null,null,null,null,null,null,null,null,null,null,null,null,null,null,null,null,null,null,null,null,null,null,null,null,null,null,null,null,null,null,null,null,null,null,null,null,null,null,null,null,null,null,null,null,null,null,null,null,null,null,null,null,null,null,null,null,null,null,null,null,null,null,null,null,null,null,null,null,null,null,null,null,null,null,null,null,null,null,null,null,null,null,null,null,null,null,"チーム名"]
[null,null,null,null,null,null,null,null,null,null,null,null,null,null,null,null,null,null,null,null,null,null,null,"：",null,null,null,null,null,"：",null,null,null,null,null,"：",null,null,null,null,null,"：",null,null,null,null,null,"：",null,null,null,null,null,"：",null,null,null,null,null,7,null,16,null,25,null,34,null,43,null,"：",null,null,null,null,null,"：",null,null,null,null,null,"：",null,null,null,null,null,"：",null,null,null,null,null,"：",null,null,null,null,null,"：",null,null,null,null,null,7,null,16,null,25,null,34,null,43,null,null,null,null,null,null,null,null,null,null,null,null,null,null,null,null,null,null,null,null,null,null,null,null,null,null,null,null,null,null,null,null,null,"："]
[]
[null,null,null,null,null,null,null,null,null,null,null,null,null,null,null,null,null,null,null,null,null,null,null,null,null,null,null,null,null,null,null,null,null,null,null,null,null,null,null,null,null,null,null,null,null,null,null,null,null,null,null,null,null,null,null,null,null,null,null,8,null,17,null,26,null,35,null,44,null,null,null,null,null,null,null,null,null,null,null,null,null,null,null,null,null,null,null,null,null,null,null,null,null,null,null,null,null,null,null,null,null,null,null,null,null,8,null,17,null,26,null,35,null,44,null,null,null,null,null,null,null,null,null,null,null,null,null,null,null,null,null,null,null,null,null,null,null,null,null,null,null,null,null,null,null,null,null,"：",null,null,null,null,null,null,null,null,null,null,null,"番号",null,null,null,null,"氏　名",null,null,null,null,null,null,null,null,null,null,null,null,null,null,null,null,null,"番号",null,null,null,null,"氏　名"]
["サービスの\nチェック欄",null,null,null,null,null,null,null,null,null,"１回目",null,null,null,"５回目",null,null,null,null,null,null,null,null,null,null,1,null,null,5,null,null,1,null,null,5,null,null,1,null,null,5,null,null,1,null,null,5,null,null,1,null,null,5,null,null,1,null,null,5,null,null,null,null,null,null,null,null,null,null,null,null,1,null,null,5,null,null,1,null,null,5,null,null,1,null,null,5,null,null,1,null,null,5,null,null,1,null,null,5,null,null,1,null,null,5]
[null,null,null,null,null,null,null,null,null,null,null,null,null,null,null,null,null,null,null,null,null,null,null,null,null,null,null,null,null,null,null,null,null,null,null,null,null,null,null,null,null,null,null,null,null,null,null,null,null,null,null,null,null,null,null,null,null,null,null,9,null,18,null,27,null,36,null,45,null,null,null,null,null,null,null,null,null,null,null,null,null,null,null,null,null,null,null,null,null,null,null,null,null,null,null,null,null,null,null,null,null,null,null,null,null,9,null,18,null,27,null,36,null,45,null,null,null,null,null,null,null,null,null,null,null,null,null,null,null,null,null,null,null,null,null,null,null,null,null,null,null,null,null,null,null,null,null,"："]
[]
[null,null,null,null,null,null,null,null,null,null,"２回目",null,null,null,"６回目",null,null,null,null,null,null,null,null,null,null,2,null,null,6,null,null,2,null,null,6,null,null,2,null,null,6,null,null,2,null,null,6,null,null,2,null,null,6,null,null,2,null,null,6,"タイムアウト",null,null,null,null,null,null,null,null,null,null,null,2,null,null,6,null,null,2,null,null,6,null,null,2,null,null,6,null,null,2,null,null,6,null,null,2,null,null,6,null,null,2,null,null,6,"タイムアウト",null,null,null,null,null,null,null,null,null,null,null,null,null,null,null,null,null,null,null,null,null,null,null,null,null,null,null,null,null,null,null,null,null,null,null,null,null,null,null,null,null,"："]
[]
[null,null,null,null,null,null,null,null,null,null,null,null,null,null,null,null,null,null,null,null,null,null,null,null,null,null,null,null,null,null,null,null,null,null,null,null,null,null,null,null,null,null,null,null,null,null,null,null,null,null,null,null,null,null,null,null,null,null,null,null,null,null,null,null,null,null,null,null,null,null,null,null,null,null,null,null,null,null,null,null,null,null,null,null,null,null,null,null,null,null,null,null,null,null,null,null,null,null,null,null,null,null,null,null,null,null,null,null,null,null,null,null,null,null,null,null,null,null,null,null,null,null,null,null,null,null,null,null,null,null,null,null,null,null,null,null,null,null,null,null,null,null,null,null,null,null,null,"："]
[null,null,null,null,null,null,null,null,null,null,"３回目",null,null,null,"７回目",null,null,null,null,null,null,null,null,null,null,3,null,null,7,null,null,3,null,null,7,null,null,3,null,null,7,null,null,3,null,null,7,null,null,3,null,null,7,null,null,3,null,null,7,"：",null,null,null,null,null,null,null,null,null,null,null,3,null,null,7,null,null,3,null,null,7,null,null,3,null,null,7,null,null,3,null,null,7,null,null,3,null,null,7,null,null,3,null,null,7,"："]
[null,null,null,null,null,null,null,null,null,null,null,null,null,null,null,null,null,null,null,null,null,null,null,null,null,null,null,null,null,null,null,null,null,null,null,null,null,null,null,null,null,null,null,null,null,null,null,null,null,null,null,null,null,null,null,null,null,null,null,null,null,null,null,null,null,null,null,null,null,null,null,null,null,null,null,null,null,null,null,null,null,null,null,null,null,null,null,null,null,null,null,null,null,null,null,null,null,null,null,null,null,null,null,null,null,null,null,null,null,null,null,null,null,null,null,null,null,"  Ｎo  ・・・ 選手番号       Ｍ  ・・・ マネージャー\n  Ｃ    ・・・ 監督             Ｈ   ・・・ 部長 \n  ＡＣ  ・・・ コーチ           Ｄ   ・・・ 遅延の罰則 "]
[]
[null,null,null,null,null,null,null,null,null,null,"４回目",null,null,null,"８回目",null,null,null,null,null,null,null,null,null,null,4,null,null,8,null,null,4,null,null,8,null,null,4,null,null,8,null,null,4,null,null,8,null,null,4,null,null,8,null,null,4,null,null,8,"：",null,null,null,null,null,null,null,null,null,null,null,4,null,null,8,null,null,4,null,null,8,null,null,4,null,null,8,null,null,4,null,null,8,null,null,4,null,null,8,null,null,4,null,null,8,"："]
[]
[]
[]
[null,null,null,null,null,null,null,null,null,null,null,null,null,null,null,null,null,null,"第2セット",null,null,null,null,"開始",null,null,null,"：",null,null,null,null,null,"チーム",null,null,null,null,null,null,null,null,null,null,null,null,null,null,null,null,null,null,null,"B",null,null,null,"Ｓ ",null,"得  点",null,null,null,null,null,null,null,null,null,"Ｓ ",null,"A",null,null,null,null,null,null,null,null,null,null,null,null,null,null,null,null,null,"チーム",null,null,null,null,null,"終了",null,null,null,"：",null,null,null,null,null,"得  点",null,null,null,null,null,null,null,null,null,null,null,"レフェリーとサイン欄"]
[]
[null,null,null,null,null,null,null,null,null,null,null,null,null,null,null,null,null,null,null,null,null,null,null,null,null,null,null,null,null,null,null,null,null,null,null,null,null,null,null,null,null,null,null,null,null,null,null,null,null,null,null,null,null,null,null,null,null,"Ｒ ",null,null,null,null,null,null,null,null,null,null,null,"Ｒ ",null,null,null,null,null,null,null,null,null,null,null,null,null,null,null,null,null,null,null,null,null,null,null,null,null,null,null,null,null,null,null,null,null,null,null,null,null,null,null,null,null,null,null,null,null,null,null,"レフェリー",null,null,null,null,null,null,"氏　名",null,null,null,null,null,null,null,null,null,null,null,null,"都道　　　　　府県",null,null,null,null,null,null,null,"サイン"]
[]
["チーム構成",null,null,"サービス順",null,null,null,null,null,null,null,null,null,null,null,null,null,null,null,null,null,null,null,"Ⅰ",null,null,null,null,null,"Ⅱ",null,null,null,null,null,"Ⅲ",null,null,null,null,null,"Ⅳ",null,null,null,null,null,"Ⅴ",null,null,null,null,null,"Ⅵ",null,null,null,null,null,1,null,10,null,19,null,28,null,37,null,"Ⅰ",null,null,null,null,null,"Ⅱ",null,null,null,null,null,"Ⅲ",null,null,null,null,null,"Ⅳ",null,null,null,null,null,"Ⅴ",null,null,null,null,null,"Ⅵ",null,null,null,null,null,1,null,10,null,19,null,28,null,37]
[]
[null,null,null,null,null,null,null,null,null,null,null,null,null,null,null,null,null,null,null,null,null,null,null,null,null,null,null,null,null,null,null,null,null,null,null,null,null,null,null,null,null,null,null,null,null,null,null,null,null,null,null,null,null,null,null,null,null,null,null,2,null,11,null,20,null,29,null,38,null,null,null,null,null,null,null,null,null,null,null,null,null,null,null,null,null,null,null,null,null,null,null,null,null,null,null,null,null,null,null,null,null,null,null,null,null,2,null,11,null,20,null,29,null,38,null,null,null,"ﾌｧｰｽﾄ\nﾚﾌｪﾘｰ"]
[null,null,null,"スターティングプレーヤー"]
[null,null,null,null,null,null,null,null,null,null,null,null,null,null,null,null,null,null,null,null,null,null,null,null,null,null,null,null,null,null,null,null,null,null,null,null,null,null,null,null,null,null,null,null,null,null,null,null,null,null,null,null,null,null,null,null,null,null,null,3,null,12,null,21,null,30,null,39,null,null,null,null,null,null,null,null,null,null,null,null,null,null,null,null,null,null,null,null,null,null,null,null,null,null,null,null,null,null,null,null,null,null,null,null,null,3,null,12,null,21,null,30,null,39]
[]
[null,null,null,"選　手\n交　代",null,null,null,null,null,null,"番号",null,null,null,null,null,null,null,null,null,null,null,null,null,null,null,null,null,null,null,null,null,null,null,null,null,null,null,null,null,null,null,null,null,null,null,null,null,null,null,null,null,null,null,null,null,null,null,null,4,null,13,null,22,null,31,null,40,null,null,null,null,null,null,null,null,null,null,null,null,null,null,null,null,null,null,null,null,null,null,null,null,null,null,null,null,null,null,null,null,null,null,null,null,null,4,null,13,null,22,null,31,null,40,null,null,null,"ｾｶﾝﾄﾞ\nﾚﾌｪﾘｰ"]
[]
[null,null,null,null,null,null,null,null,null,null,null,null,null,null,null,null,null,null,null,null,null,null,null,null,null,null,null,null,null,null,null,null,null,null,null,null,null,null,null,null,null,null,null,null,null,null,null,null,null,null,null,null,null,null,null,null,null,null,null,5,null,14,null,23,null,32,null,41,null,null,null,null,null,null,null,null,null,null,null,null,null,null,null,null,null,null,null,null,null,null,null,null,null,null,null,null,null,null,null,null,null,null,null,null,null,5,null,14,null,23,null,32,null,41]
[null,null,null,null,null,null,null,null,null,null,"交代時\n得　点",null,null,null,null,null,null,null,null,null,null,null,null,"：",null,null,null,null,null,"：",null,null,null,null,null,"：",null,null,null,null,null,"：",null,null,null,null,null,"：",null,null,null,null,null,"：",null,null,null,null,null,null,null,null,null,null,null,null,null,null,null,"：",null,null,null,null,null,"：",null,null,null,null,null,"：",null,null,null,null,null,"：",null,null,null,null,null,"：",null,null,null,null,null,"："]
[null,null,null,null,null,null,null,null,null,null,null,null,null,null,null,null,null,null,null,null,null,null,null,null,null,null,null,null,null,null,null,null,null,null,null,null,null,null,null,null,null,null,null,null,null,null,null,null,null,null,null,null,null,null,null,null,null,null,null,6,null,15,null,24,null,33,null,42,null,null,null,null,null,null,null,null,null,null,null,null,null,null,null,null,null,null,null,null,null,null,null,null,null,null,null,null,null,null,null,null,null,null,null,null,null,6,null,15,null,24,null,33,null,42,null,null,null,"スコアラー"]
[]
[null,null,null,null,null,null,null,null,null,null,null,null,null,null,null,null,null,null,null,null,null,null,null,"：",null,null,null,null,null,"：",null,null,null,null,null,"：",null,null,null,null,null,"：",null,null,null,null,null,"：",null,null,null,null,null,"：",null,null,null,null,null,7,null,16,null,25,null,34,null,43,null,"：",null,null,null,null,null,"：",null,null,null,null,null,"：",null,null,null,null,null,"：",null,null,null,null,null,"：",null,null,null,null,null,"：",null,null,null,null,null,7,null,16,null,25,null,34,null,43]
[null,null,null,null,null,null,null,null,null,null,null,null,null,null,null,null,null,null,null,null,null,null,null,null,null,null,null,null,null,null,null,null,null,null,null,null,null,null,null,null,null,null,null,null,null,null,null,null,null,null,null,null,null,null,null,null,null,null,null,null,null,null,null,null,null,null,null,null,null,null,null,null,null,null,null,null,null,null,null,null,null,null,null,null,null,null,null,null,null,null,null,null,null,null,null,null,null,null,null,null,null,null,null,null,null,null,null,null,null,null,null,null,null,null,null,null,null,null,null,null,null,null,null,null,null,null,null,null,null,null,null,null,null,null,null,null,null,null,null,null,null,null,null,null,null,null,null,null,null,null,null,null,null,null,null,null,null,null,null,"リ　ベ　ロ"]
[null,null,null,null,null,null,null,null,null,null,null,null,null,null,null,null,null,null,null,null,null,null,null,null,null,null,null,null,null,null,null,null,null,null,null,null,null,null,null,null,null,null,null,null,null,null,null,null,null,null,null,null,null,null,null,null,null,null,null,8,null,17,null,26,null,35,null,44,null,null,null,null,null,null,null,null,null,null,null,null,null,null,null,null,null,null,null,null,null,null,null,null,null,null,null,null,null,null,null,null,null,null,null,null,null,8,null,17,null,26,null,35,null,44,null,null,null,"ｱｼｽﾀﾝﾄｽｺｱﾗｰ"]
["サービスの\nチェック欄",null,null,null,null,null,null,null,null,null,"１回目",null,null,null,"５回目",null,null,null,null,null,null,null,null,null,null,1,null,null,5,null,null,1,null,null,5,null,null,1,null,null,5,null,null,1,null,null,5,null,null,1,null,null,5,null,null,1,null,null,5,null,null,null,null,null,null,null,null,null,null,null,null,1,null,null,5,null,null,1,null,null,5,null,null,1,null,null,5,null,null,1,null,null,5,null,null,1,null,null,5,null,null,1,null,null,5]
[null,null,null,null,null,null,null,null,null,null,null,null,null,null,null,null,null,null,null,null,null,null,null,null,null,null,null,null,null,null,null,null,null,null,null,null,null,null,null,null,null,null,null,null,null,null,null,null,null,null,null,null,null,null,null,null,null,null,null,9,null,18,null,27,null,36,null,45,null,null,null,null,null,null,null,null,null,null,null,null,null,null,null,null,null,null,null,null,null,null,null,null,null,null,null,null,null,null,null,null,null,null,null,null,null,9,null,18,null,27,null,36,null,45]
[]
[null,null,null,null,null,null,null,null,null,null,"２回目",null,null,null,"６回目",null,null,null,null,null,null,null,null,null,null,2,null,null,6,null,null,2,null,null,6,null,null,2,null,null,6,null,null,2,null,null,6,null,null,2,null,null,6,null,null,2,null,null,6,"タイムアウト",null,null,null,null,null,null,null,null,null,null,null,2,null,null,6,null,null,2,null,null,6,null,null,2,null,null,6,null,null,2,null,null,6,null,null,2,null,null,6,null,null,2,null,null,6,"タイムアウト",null,null,null,null,null,null,null,null,null,null,null,null,null,null,null,null,null,null,null,null,null,null,null,null,1,null,"ラインジャッジ",null,null,null,null,null,null,null,null,null,2]
[null,null,null,null,null,null,null,null,null,null,null,null,null,null,null,null,null,null,null,null,null,null,null,null,null,null,null,null,null,null,null,null,null,null,null,null,null,null,null,null,null,null,null,null,null,null,null,null,null,null,null,null,null,null,null,null,null,null,null,null,null,null,null,null,null,null,null,null,null,null,null,null,null,null,null,null,null,null,null,null,null,null,null,null,null,null,null,null,null,null,null,null,null,null,null,null,null,null,null,null,null,null,null,null,null,null,null,null,null,null,null,null,null,null,null,null,null,null,null,null,null,null,null,null,null,null,null,null,null,null,null,null,null,null,null,null,null,null,null,null,null,null,null,null,null,null,null,null,null,null,null,null,null,null,null,null,null,null,null,"チームキャプテン",null,null,null,null,null,null,null,null,null,null,null,null,null,null,null,null,null,null,null,null,null,null,"チームキャプテン"]
[]
[null,null,null,null,null,null,null,null,null,null,"３回目",null,null,null,"７回目",null,null,null,null,null,null,null,null,null,null,3,null,null,7,null,null,3,null,null,7,null,null,3,null,null,7,null,null,3,null,null,7,null,null,3,null,null,7,null,null,3,null,null,7,"：",null,null,null,null,null,null,null,null,null,null,null,3,null,null,7,null,null,3,null,null,7,null,null,3,null,null,7,null,null,3,null,null,7,null,null,3,null,null,7,null,null,3,null,null,7,"：",null,null,null,null,null,null,null,null,null,null,null,null,null,null,null,null,null,null,null,null,null,null,null,null,3,null,null,null,null,null,null,null,null,null,null,null,4]
[]
[null,null,null,null,null,null,null,null,null,null,null,null,null,null,null,null,null,null,null,null,null,null,null,null,null,null,null,null,null,null,null,null,null,null,null,null,null,null,null,null,null,null,null,null,null,null,null,null,null,null,null,null,null,null,null,null,null,null,null,null,null,null,null,null,null,null,null,null,null,null,null,null,null,null,null,null,null,null,null,null,null,null,null,null,null,null,null,null,null,null,null,null,null,null,null,null,null,null,null,null,null,null,null,null,null,null,null,null,null,null,null,null,null,null,null,null,null,null,null,null,null,null,null,null,null,null,null,null,null,null,null,null,null,null,null,null,null,null,null,null,null,null,null,null,null,null,null,null,null,null,null,null,null,null,null,null,null,null,null,"監督",null,null,null,null,null,null,null,null,null,null,null,null,null,null,null,null,null,null,null,null,null,null,"監督"]
[null,null,null,null,null,null,null,null,null,null,"４回目",null,null,null,"８回目",null,null,null,null,null,null,null,null,null,null,4,null,null,8,null,null,4,null,null,8,null,null,4,null,null,8,null,null,4,null,null,8,null,null,4,null,null,8,null,null,4,null,null,8,"：",null,null,null,null,null,null,null,null,null,null,null,4,null,null,8,null,null,4,null,null,8,null,null,4,null,null,8,null,null,4,null,null,8,null,null,4,null,null,8,null,null,4,null,null,8,"：",null,null,null,null,null,null,null,null,null,null,null,null,null,null,null,null,null,null,null,null,null,null,null,null,"A",null,"チームキャプテン",null,null,null,null,null,null,null,null,null,"B"]
[]
[]
[]
[null,null,null,null,null,null,null,null,null,null,null,null,null,null,null,null,null,null,"第3セット",null,null,null,null,"開始",null,null,null,"：",null,null,null,null,null,"チーム",null,null,null,null,null,null,null,null,null,null,null,null,null,null,null,null,null,null,null,null,null,null,null,"Ｓ ",null,"得点",null,null,null,null,null,"Ｓ ",null,null,null,null,null,null,null,null,null,null,null,null,null,null,null,null,null,null,null,"チーム",null,null,null,null,null,"終了",null,null,null,"：",null,null,null,null,null,"得点",null,null,null,null,null,null,null,"コートチェンジ",null,null,null,"チーム",null,null,null,null,null,null,null,null,null,null,null,null,null,null,null,null,null,null,null,null,null,null,null,null,null,null,null,null,null,null,null,null,null,null,null,"得点",null,null,null,null,null,null,null,null,null,"試　合　結　果"]
[null,null,null,null,null,null,null,null,null,null,null,null,null,null,null,null,null,null,null,null,null,null,null,null,null,null,null,null,null,null,null,null,null,null,null,null,null,null,null,null,null,null,null,null,null,null,null,null,null,null,null,null,null,null,null,null,null,null,null,null,null,null,null,null,null,null,null,null,null,null,null,null,null,null,null,null,null,null,null,null,null,null,null,null,null,null,null,null,null,null,null,null,null,null,null,null,null,null,null,null,null,null,null,null,null,null,null,null,null,null,null,null,null,null,null,null,null,null,null,null,null,null,null,"コートチェンジ時の得点"]
[null,null,null,null,null,null,null,null,null,null,null,null,null,null,null,null,null,null,null,null,null,null,null,null,null,null,null,null,null,null,null,null,null,null,null,null,null,null,null,null,null,null,null,null,null,null,null,null,null,null,null,null,null,null,null,null,null,"Ｒ ",null,null,null,null,null,null,null,"Ｒ ",null,null,null,null,null,null,null,null,null,null,null,null,null,null,null,null,null,null,null,null,null,null,null,null,null,null,null,null,null,null,null,null,null,null,null,null,null,null,null,null,null,null,null,null,null,null,null,null,null,null,null,null,null,null,null,null,null,null,null,null,null,null,null,null,null,null,null,null,null,null,null,null,null,null,null,null,null,null,null,null,null,null,null,null,null,null,null,null,null,null,null,null,null,null,null,null,null,null,null,null,null,null,null,null,null,null,null,null,null,null,null,null,"A",null,null,null,"B"]
[null,null,null,null,null,null,null,null,null,null,null,null,null,null,null,null,null,null,null,null,null,null,null,null,null,null,null,null,null,null,null,null,null,null,null,null,null,null,null,null,null,null,null,null,null,null,null,null,null,null,null,null,null,null,null,null,null,null,null,null,null,null,null,null,null,null,null,null,null,null,null,null,null,null,null,null,null,null,null,null,null,null,null,null,null,null,null,null,null,null,null,null,null,null,null,null,null,null,null,null,null,null,null,null,null,null,null,null,null,null,null,null,null,null,null,null,null,null,null,null,null,null,null,null,null,null,null,null,null,null,null,null,null,null,null,null,null,null,null,null,null,null,null,null,null,null,null,null,null,null,null,null,null,null,null,null,null,null,null,"チーム",null,null,null,null,null,null,null,null,null,null,null,null,null,null,null,null,null,null,null,null,null,null,null,null,null,null,null,null,null,null,null,null,null,null,null,null,null,null,null,null,"チーム"]
["チーム構成",null,null,"サービス順",null,null,null,null,null,null,null,null,null,null,null,null,null,null,null,null,null,null,null,"Ⅰ",null,null,null,null,null,"Ⅱ",null,null,null,null,null,"Ⅲ",null,null,null,null,null,"Ⅳ",null,null,null,null,null,"Ⅴ",null,null,null,null,null,"Ⅵ",null,null,null,null,null,null,null,null,null,null,null,"Ⅰ",null,null,null,null,null,"Ⅱ",null,null,null,null,null,"Ⅲ",null,null,null,null,null,"Ⅳ",null,null,null,null,null,"Ⅴ",null,null,null,null,null,"Ⅵ",null,null,null,null,null,1,null,9,null,17,null,25,null,null,null,null,null,"Ⅰ",null,null,null,null,null,"Ⅱ",null,null,null,null,null,"Ⅲ",null,null,null,null,null,"Ⅳ",null,null,null,null,null,"Ⅴ",null,null,null,null,null,"Ⅵ",null,null,null,null,null,1,null,9,null,17,null,25]
[null,null,null,null,null,null,null,null,null,null,null,null,null,null,null,null,null,null,null,null,null,null,null,null,null,null,null,null,null,null,null,null,null,null,null,null,null,null,null,null,null,null,null,null,null,null,null,null,null,null,null,null,null,null,null,null,null,null,null,null,null,1]
[null,null,null,null,null,null,null,null,null,null,null,null,null,null,null,null,null,null,null,null,null,null,null,null,null,null,null,null,null,null,null,null,null,null,null,null,null,null,null,null,null,null,null,null,null,null,null,null,null,null,null,null,null,null,null,null,null,null,null,null,null,2,null,null,null,null,null,null,null,null,null,null,null,null,null,null,null,null,null,null,null,null,null,null,null,null,null,null,null,null,null,null,null,null,null,null,null,null,null,null,null,2,null,10,null,18,null,26,null,null,null,null,null,null,null,null,null,null,null,null,null,null,null,null,null,null,null,null,null,null,null,null,null,null,null,null,null,null,null,null,null,null,null,null,null,null,null,null,null,2,null,10,null,18,null,26,null,null,null,"タイム\nアウト",null,null,null,"選手\n交代",null,null,null,"勝",null,null,null,"得点",null,null,null,null,"セット（時間）",null,null,null,null,null,null,null,null,null,null,null,"得点",null,null,null,null,"勝",null,null,null,"選手\n交代",null,null,null,"タイム\nアウト"]
[null,null,null,"スターティングプレーヤー",null,null,null,null,null,null,null,null,null,null,null,null,null,null,null,null,null,null,null,null,null,null,null,null,null,null,null,null,null,null,null,null,null,null,null,null,null,null,null,null,null,null,null,null,null,null,null,null,null,null,null,null,null,null,null,null,null,3]
[null,null,null,null,null,null,null,null,null,null,null,null,null,null,null,null,null,null,null,null,null,null,null,null,null,null,null,null,null,null,null,null,null,null,null,null,null,null,null,null,null,null,null,null,null,null,null,null,null,null,null,null,null,null,null,null,null,null,null,null,null,4,null,null,null,null,null,null,null,null,null,null,null,null,null,null,null,null,null,null,null,null,null,null,null,null,null,null,null,null,null,null,null,null,null,null,null,null,null,null,null,3,null,11,null,19,null,27,null,null,null,null,null,null,null,null,null,null,null,null,null,null,null,null,null,null,null,null,null,null,null,null,null,null,null,null,null,null,null,null,null,null,null,null,null,null,null,null,null,3,null,11,null,19,null,27]
[null,null,null,null,null,null,null,null,null,null,null,null,null,null,null,null,null,null,null,null,null,null,null,null,null,null,null,null,null,null,null,null,null,null,null,null,null,null,null,null,null,null,null,null,null,null,null,null,null,null,null,null,null,null,null,null,null,null,null,null,null,5,null,null,null,null,null,null,null,null,null,null,null,null,null,null,null,null,null,null,null,null,null,null,null,null,null,null,null,null,null,null,null,null,null,null,null,null,null,null,null,null,null,null,null,null,null,null,null,null,null,null,null,null,null,null,null,null,null,null,null,null,null,null,null,null,null,null,null,null,null,null,null,null,null,null,null,null,null,null,null,null,null,null,null,null,null,null,null,null,null,null,null,null,null,null,null,null,null,null,null,null,null,null,null,null,null,null,null,null,null,null,null,null,null,null,"Ⅰ",null,null,null,"(",null,null,null,null,null,")"]
[null,null,null,"選　手\n交　代",null,null,null,null,null,null,"番号",null,null,null,null,null,null,null,null,null,null,null,null,null,null,null,null,null,null,null,null,null,null,null,null,null,null,null,null,null,null,null,null,null,null,null,null,null,null,null,null,null,null,null,null,null,null,null,null,null,null,6,null,null,null,null,null,null,null,null,null,null,null,null,null,null,null,null,null,null,null,null,null,null,null,null,null,null,null,null,null,null,null,null,null,null,null,null,null,null,null,4,null,12,null,20,null,28,null,null,null,null,null,null,null,null,null,null,null,null,null,null,null,null,null,null,null,null,null,null,null,null,null,null,null,null,null,null,null,null,null,null,null,null,null,null,null,null,null,4,null,12,null,20,null,28]
[null,null,null,null,null,null,null,null,null,null,null,null,null,null,null,null,null,null,null,null,null,null,null,null,null,null,null,null,null,null,null,null,null,null,null,null,null,null,null,null,null,null,null,null,null,null,null,null,null,null,null,null,null,null,null,null,null,null,null,null,null,7]
[null,null,null,null,null,null,null,null,null,null,null,null,null,null,null,null,null,null,null,null,null,null,null,null,null,null,null,null,null,null,null,null,null,null,null,null,null,null,null,null,null,null,null,null,null,null,null,null,null,null,null,null,null,null,null,null,null,null,null,null,null,8,null,null,null,null,null,null,null,null,null,null,null,null,null,null,null,null,null,null,null,null,null,null,null,null,null,null,null,null,null,null,null,null,null,null,null,null,null,null,null,5,null,13,null,21,null,29,null,null,null,null,null,null,null,null,null,null,null,null,null,null,null,null,null,null,null,null,null,null,null,null,null,null,null,null,null,null,null,null,null,null,null,null,null,null,null,null,null,5,null,13,null,21,null,29,null,null,null,null,null,null,null,null,null,null,null,null,null,null,null,null,null,null,null,null,"Ⅱ",null,null,null,"(",null,null,null,null,null,")"]
[null,null,null,null,null,null,null,null,null,null,"交代時\n得　点",null,null,null,null,null,null,null,null,null,null,null,null,"：",null,null,null,null,null,"：",null,null,null,null,null,"：",null,null,null,null,null,"：",null,null,null,null,null,"：",null,null,null,null,null,"：",null,null,null,null,null,null,null,9,null,null,null,"：",null,null,null,null,null,"：",null,null,null,null,null,"：",null,null,null,null,null,"：",null,null,null,null,null,"：",null,null,null,null,null,"：",null,null,null,null,null,null,null,null,null,null,null,null,null,null,null,null,null,"：",null,null,null,null,null,"：",null,null,null,null,null,"：",null,null,null,null,null,"：",null,null,null,null,null,"：",null,null,null,null,null,"："]
[null,null,null,null,null,null,null,null,null,null,null,null,null,null,null,null,null,null,null,null,null,null,null,null,null,null,null,null,null,null,null,null,null,null,null,null,null,null,null,null,null,null,null,null,null,null,null,null,null,null,null,null,null,null,null,null,null,null,null,null,null,10,null,null,null,null,null,null,null,null,null,null,null,null,null,null,null,null,null,null,null,null,null,null,null,null,null,null,null,null,null,null,null,null,null,null,null,null,null,null,null,6,null,14,null,22,null,30,null,null,null,null,null,null,null,null,null,null,null,null,null,null,null,null,null,null,null,null,null,null,null,null,null,null,null,null,null,null,null,null,null,null,null,null,null,null,null,null,null,6,null,14,null,22,null,30]
[null,null,null,null,null,null,null,null,null,null,null,null,null,null,null,null,null,null,null,null,null,null,null,null,null,null,null,null,null,null,null,null,null,null,null,null,null,null,null,null,null,null,null,null,null,null,null,null,null,null,null,null,null,null,null,null,null,null,null,null,null,11,null,null,null,null,null,null,null,null,null,null,null,null,null,null,null,null,null,null,null,null,null,null,null,null,null,null,null,null,null,null,null,null,null,null,null,null,null,null,null,null,null,null,null,null,null,null,null,null,null,null,null,null,null,null,null,null,null,null,null,null,null,null,null,null,null,null,null,null,null,null,null,null,null,null,null,null,null,null,null,null,null,null,null,null,null,null,null,null,null,null,null,null,null,null,null,null,null,null,null,null,null,null,null,null,null,null,null,null,null,null,null,null,null,null,"Ⅲ",null,null,null,"(",null,null,null,null,null,")"]
[null,null,null,null,null,null,null,null,null,null,null,null,null,null,null,null,null,null,null,null,null,null,null,"：",null,null,null,null,null,"：",null,null,null,null,null,"：",null,null,null,null,null,"：",null,null,null,null,null,"：",null,null,null,null,null,"：",null,null,null,null,null,null,null,12,null,null,null,"：",null,null,null,null,null,"：",null,null,null,null,null,"：",null,null,null,null,null,"：",null,null,null,null,null,"：",null,null,null,null,null,"：",null,null,null,null,null,7,null,15,null,23,null,31,null,null,null,null,null,"：",null,null,null,null,null,"：",null,null,null,null,null,"：",null,null,null,null,null,"：",null,null,null,null,null,"：",null,null,null,null,null,"：",null,null,null,null,null,7,null,15,null,23,null,31]
[null,null,null,null,null,null,null,null,null,null,null,null,null,null,null,null,null,null,null,null,null,null,null,null,null,null,null,null,null,null,null,null,null,null,null,null,null,null,null,null,null,null,null,null,null,null,null,null,null,null,null,null,null,null,null,null,null,null,null,null,null,13]
[null,null,null,null,null,null,null,null,null,null,null,null,null,null,null,null,null,null,null,null,null,null,null,null,null,null,null,null,null,null,null,null,null,null,null,null,null,null,null,null,null,null,null,null,null,null,null,null,null,null,null,null,null,null,null,null,null,null,null,null,null,null,null,null,null,null,null,null,null,null,null,null,null,null,null,null,null,null,null,null,null,null,null,null,null,null,null,null,null,null,null,null,null,null,null,null,null,null,null,null,null,8,null,16,null,24,null,32,null,null,null,null,null,null,null,null,null,null,null,null,null,null,null,null,null,null,null,null,null,null,null,null,null,null,null,null,null,null,null,null,null,null,null,null,null,null,null,null,null,8,null,16,null,24,null,32,null,null,null,null,null,null,null,null,null,null,null,null,null,null,null,null,null,null,null,null,"計",null,null,null,"(",null,null,null,null,null,")"]
["サービスの\nチェック欄",null,null,null,null,null,null,null,null,null,"１回目",null,null,null,"４回目",null,null,null,null,null,null,null,null,null,null,1,null,null,4,null,null,1,null,null,4,null,null,1,null,null,4,null,null,1,null,null,4,null,null,1,null,null,4,null,null,1,null,null,4,"タイムアウト",null,null,null,null,null,null,null,1,null,null,4,null,null,1,null,null,4,null,null,1,null,null,4,null,null,1,null,null,4,null,null,1,null,null,4,null,null,1,null,null,4,"タイムアウト",null,null,null,null,null,null,null,null,null,null,null,null,null,1,null,null,4,null,null,1,null,null,4,null,null,1,null,null,4,null,null,1,null,null,4,null,null,1,null,null,4,null,null,1,null,null,4,"タイムアウト"]
[]
[null,null,null,null,null,null,null,null,null,null,null,null,null,null,null,null,null,null,null,null,null,null,null,null,null,null,null,null,null,null,null,null,null,null,null,null,null,null,null,null,null,null,null,null,null,null,null,null,null,null,null,null,null,null,null,null,null,null,null,null,null,null,null,null,null,null,null,null,null,null,null,null,null,null,null,null,null,null,null,null,null,null,null,null,null,null,null,null,null,null,null,null,null,null,null,null,null,null,null,null,null,null,null,null,null,null,null,null,null,null,null,null,null,null,null,null,null,null,null,null,null,null,null,null,null,null,null,null,null,null,null,null,null,null,null,null,null,null,null,null,null,null,null,null,null,null,null,null,null,null,null,null,null,null,null,null,null,null,null,"試合開始時刻",null,null,null,null,null,null,null,null,null,null,null,null,null,null,"試合終了時刻",null,null,null,null,null,null,null,null,null,null,null,null,null,null,"試合所要時間"]
[null,null,null,null,null,null,null,null,null,null,"２回目",null,null,null,"５回目",null,null,null,null,null,null,null,null,null,null,2,null,null,5,null,null,2,null,null,5,null,null,2,null,null,5,null,null,2,null,null,5,null,null,2,null,null,5,null,null,2,null,null,5,"： ",null,null,null,null,null,null,null,2,null,null,5,null,null,2,null,null,5,null,null,2,null,null,5,null,null,2,null,null,5,null,null,2,null,null,5,null,null,2,null,null,5,"：",null,null,null,null,null,null,null,null,null,null,null,null,null,2,null,null,5,null,null,2,null,null,5,null,null,2,null,null,5,null,null,2,null,null,5,null,null,2,null,null,5,null,null,2,null,null,5,"："]
[null,null,null,null,null,null,null,null,null,null,null,null,null,null,null,null,null,null,null,null,null,null,null,null,null,null,null,null,null,null,null,null,null,null,null,null,null,null,null,null,null,null,null,null,null,null,null,null,null,null,null,null,null,null,null,null,null,null,null,null,null,null,null,null,null,null,null,null,null,null,null,null,null,null,null,null,null,null,null,null,null,null,null,null,null,null,null,null,null,null,null,null,null,null,null,null,null,null,null,null,null,null,null,null,null,null,null,null,null,null,null,null,null,null,null,null,null,null,null,null,null,null,null,null,null,null,null,null,null,null,null,null,null,null,null,null,null,null,null,null,null,null,null,null,null,null,null,null,null,null,null,null,null,null,null,null,null,null,null,null,null,null,null,null,"h",null,null,null,null,null,"min",null,null,null,null,null,null,null,null,"h",null,null,null,null,null,"min",null,null,null,null,null,null,null,null,null,"h",null,null,null,null,null,"min"]
[]
[null,null,null,null,null,null,null,null,null,null,"３回目",null,null,null,"６回目",null,null,null,null,null,null,null,null,null,null,3,null,null,6,null,null,3,null,null,6,null,null,3,null,null,6,null,null,3,null,null,6,null,null,3,null,null,6,null,null,3,null,null,6,"：",null,null,null,null,null,null,null,3,null,null,6,null,null,3,null,null,6,null,null,3,null,null,6,null,null,3,null,null,6,null,null,3,null,null,6,null,null,3,null,null,6,"：",null,null,null,null,null,null,null,null,null,null,null,null,null,3,null,null,6,null,null,3,null,null,6,null,null,3,null,null,6,null,null,3,null,null,6,null,null,3,null,null,6,null,null,3,null,null,6,"：",null,null,null,null,null,null,null,null,null,"勝利チーム",null,null,null,null,null,null,null,null,null,null,null,null,null,null,null,null,null,null,null,null,null,null,null,null,null,null,null,null,null,null,null,null,null,null,null,2,null,null,"："]

{"sheet":"リベコン","index":2,"n_rows":167,"n_cols":203,"rows_kept":167,"cut":false,"hidden":true,"merged":[[14,78,20,80],[14,108,19,118],[14,146,20,148],[15,87,20,107],[15,119,20,139],[17,1,21,12],[8,109,10,112],[33,181,36,187],[33,188,36,194],[23,121,27,210],[28,1,32,30],[28,31,32,60],[28,61,32,90],[28,91,32,120],[28,121,32,150],[28,151,32,180],[28,181,32,210],[8,139,10,141],[8,135,10,138],[8,142,10,145],[33,195,36,210],[33,135,36,150],[33,151,36,157],[33,158,36,164],[33,165,36,180],[0,1,5,12],[6,1,10,12],[6,13,10,76],[7,78,11,88],[7,118,11,130],[8,90,10,96],[8,101,10,104],[17,51,21,76],[17,150,20,209],[18,14,20,18],[18,20,20,23],[18,26,20,30],[18,32,20,35],[18,40,20,49],[11,1,16,12],[11,13,16,76],[13,202,14,210],[23,1,27,60],[23,61,27,120],[37,1,40,7],[37,8,40,14],[37,15,40,30],[37,31,40,37],[37,38,40,44],[37,45,40,60],[37,61,40,67],[33,121,36,127],[33,128,36,134],[33,61,36,67],[33,68,36,74],[33,75,36,90],[33,91,36,97],[33,98,36,104],[33,105,36,120],[33,1,36,7],[33,8,36,14],[33,15,36,30],[33,31,36,37],[33,38,36,44],[33,45,36,60],[37,188,40,194],[37,195,40,210],[41,1,44,7],[41,8,44,14],[41,15,44,30],[41,31,44,37],[41,38,44,44],[41,45,44,60],[41,61,44,67],[41,68,44,74],[37,128,40,134],[37,135,40,150],[37,151,40,157],[37,158,40,164],[37,165,40,180],[37,181,40,187],[37,68,40,74],[37,75,40,90],[37,91,40,97],[37,98,40,104],[37,105,40,120],[37,121,40,127],[41,195,44,210],[41,135,44,150],[41,151,44,157],[41,158,44,164],[41,165,44,180],[41,181,44,187],[41,188,44,194],[41,75,44,90],[41,91,44,97],[41,98,44,104],[41,105,44,120],[41,121,44,127],[41,128,44,134],[45,165,48,180],[45,181,48,187],[45,188,48,194],[45,195,48,210],[45,91,48,97],[45,98,48,104],[45,105,48,120],[45,121,48,127],[45,128,48,134],[45,135,48,150],[49,105,52,120],[49,1,52,7],[49,8,52,14],[49,15,52,30],[49,31,52,37],[49,38,52,44],[49,45,52,60],[45,151,48,157],[45,158,48,164],[45,1,48,7],[45,8,48,14],[45,15,48,30],[45,31,48,37],[45,38,48,44],[45,45,48,60],[45,61,48,67],[45,68,48,74],[45,75,48,90],[53,98,56,104],[53,105,56,120],[53,121,56,127],[49,181,52,187],[49,188,52,194],[49,195,52,210],[53,1,56,7],[53,8,56,14],[53,15,56,30],[53,31,56,37],[53,38,56,44],[53,45,56,60],[53,61,56,67],[49,121,52,127],[49,128,52,134],[49,135,52,150],[49,151,52,157],[49,158,52,164],[49,165,52,180],[49,61,52,67],[49,68,52,74],[49,75,52,90],[49,91,52,97],[49,98,52,104],[57,91,60,97],[57,98,60,104],[57,105,60,120],[57,121,60,127],[57,128,60,134],[53,188,56,194],[53,195,56,210],[57,1,60,7],[57,8,60,14],[57,15,60,30],[57,31,60,37],[57,38,60,44],[57,45,60,60],[57,61,60,67],[57,68,60,74],[53,128,56,134],[53,135,56,150],[53,151,56,157],[53,158,56,164],[53,165,56,180],[53,181,56,187],[53,68,56,74],[53,75,56,90],[53,91,56,97],[61,195,64,210],[61,91,64,97],[61,98,64,104],[61,105,64,120],[61,121,64,127],[61,128,64,134],[61,135,64,150],[57,195,60,210],[61,1,64,7],[61,8,64,14],[61,15,64,30],[61,31,64,37],[61,38,64,44],[61,45,64,60],[61,61,64,67],[61,68,64,74],[61,75,64,90],[57,135,60,150],[57,151,60,157],[57,158,60,164],[57,165,60,180],[57,181,60,187],[57,188,60,194],[57,75,60,90],[65,15,68,30],[65,31,68,37],[65,38,68,44],[65,45,68,60],[61,151,64,157],[61,158,64,164],[61,165,64,180],[61,181,64,187],[61,188,64,194],[65,181,68,187],[65,188,68,194],[65,195,68,210],[69,1,72,7],[69,8,72,14],[69,15,72,30],[69,31,72,37],[69,38,72,44],[69,45,72,60],[69,61,72,67],[65,121,68,127],[65,128,68,134],[65,135,68,150],[65,151,68,157],[65,158,68,164],[65,165,68,180],[65,61,68,67],[65,68,68,74],[65,75,68,90],[65,91,68,97],[65,98,68,104],[65,105,68,120],[65,1,68,7],[65,8,68,14],[69,188,72,194],[69,195,72,210],[73,1,76,7],[73,8,76,14],[73,15,76,30],[73,31,76,37],[73,38,76,44],[73,45,76,60],[73,61,76,67],[73,68,76,74],[69,128,72,134],[69,135,72,150],[69,151,72,157],[69,158,72,164],[69,165,72,180],[69,181,72,187],[69,68,72,74],[69,75,72,90],[69,91,72,97],[69,98,72,104],[69,105,72,120],[69,121,72,127],[73,195,76,210],[77,1,80,7],[77,8,80,14],[77,15,80,30],[77,31,80,37],[77,38,80,44],[77,45,80,60],[77,61,80,67],[77,68,80,74],[77,75,80,90],[73,135,76,150],[73,151,76,157],[73,158,76,164],[73,165,76,180],[73,181,76,187],[73,188,76,194],[73,75,76,90],[73,91,76,97],[73,98,76,104],[73,105,76,120],[73,121,76,127],[73,128,76,134],[77,165,80,180],[77,181,80,187],[77,188,80,194],[77,195,80,210],[77,91,80,97],[77,98,80,104],[77,105,80,120],[77,121,80,127],[77,128,80,134],[77,135,80,150],[81,105,84,120],[81,181,84,187],[81,188,84,194],[81,195,84,210],[81,165,84,180],[81,1,84,7],[81,8,84,14],[81,15,84,30],[81,31,84,37],[81,38,84,44],[81,45,84,60],[77,151,80,157],[77,158,80,164],[85,98,88,104],[85,105,88,120],[85,121,88,127],[85,1,88,7],[85,8,88,14],[85,15,88,30],[85,31,88,37],[85,38,88,44],[85,45,88,60],[85,61,88,67],[81,121,84,127],[81,128,84,134],[81,135,84,150],[81,151,84,157],[81,158,84,164],[81,61,84,67],[81,68,84,74],[81,75,84,90],[81,91,84,97],[81,98,84,104],[89,91,92,97],[89,98,92,104],[89,105,92,120],[89,121,92,127],[89,128,92,134],[85,188,88,194],[85,195,88,210],[89,1,92,7],[89,8,92,14],[89,15,92,30],[89,31,92,37],[89,38,92,44],[89,45,92,60],[89,61,92,67],[89,68,92,74],[85,128,88,134],[85,135,88,150],[85,151,88,157],[85,158,88,164],[85,165,88,180],[85,181,88,187],[85,68,88,74],[85,75,88,90],[85,91,88,97],[93,195,96,210],[93,91,96,97],[93,98,96,104],[93,105,96,120],[93,121,96,127],[93,128,96,134],[93,135,96,150],[89,195,92,210],[93,1,96,7],[93,8,96,14],[93,15,96,30],[93,31,96,37],[93,38,96,44],[93,45,96,60],[93,61,96,67],[93,68,96,74],[93,75,96,90],[89,135,92,150],[89,151,92,157],[89,158,92,164],[89,165,92,180],[89,181,92,187],[89,188,92,194],[89,75,92,90],[97,15,100,30],[97,31,100,37],[97,38,100,44],[97,45,100,60],[93,151,96,157],[93,158,96,164],[93,165,96,180],[93,181,96,187],[93,188,96,194],[97,181,100,187],[97,188,100,194],[97,195,100,210],[101,1,104,7],[101,8,104,14],[101,15,104,30],[101,31,104,37],[101,38,104,44],[101,45,104,60],[101,61,104,67],[97,121,100,127],[97,128,100,134],[97,135,100,150],[97,151,100,157],[97,158,100,164],[97,165,100,180],[97,61,100,67],[97,68,100,74],[97,75,100,90],[97,91,100,97],[97,98,100,104],[97,105,100,120],[97,1,100,7],[97,8,100,14],[101,188,104,194],[101,195,104,210],[105,1,108,7],[105,8,108,14],[105,15,108,30],[105,31,108,37],[105,38,108,44],[105,45,108,60],[105,61,108,67],[105,68,108,74],[101,128,104,134],[101,135,104,150],[101,151,104,157],[101,158,104,164],[101,165,104,180],[101,181,104,187],[101,68,104,74],[101,75,104,90],[101,91,104,97],[101,98,104,104],[101,105,104,120],[101,121,104,127],[105,195,108,210],[109,1,112,7],[109,8,112,14],[109,15,112,30],[109,31,112,37],[109,38,112,44],[109,45,112,60],[109,61,112,67],[109,68,112,74],[109,75,112,90],[105,135,108,150],[105,151,108,157],[105,158,108,164],[105,165,108,180],[105,181,108,187],[105,188,108,194],[105,75,108,90],[105,91,108,97],[105,98,108,104],[105,105,108,120],[105,121,108,127],[105,128,108,134],[109,165,112,180],[109,181,112,187],[109,188,112,194],[109,195,112,210],[109,91,112,97],[109,98,112,104],[109,105,112,120],[109,121,112,127],[109,128,112,134],[109,135,112,150],[113,105,116,120],[113,181,116,187],[113,188,116,194],[113,195,116,210],[113,165,116,180],[113,1,116,7],[113,8,116,14],[113,15,116,30],[113,31,116,37],[113,38,116,44],[113,45,116,60],[109,151,112,157],[109,158,112,164],[117,98,120,104],[117,105,120,120],[117,121,120,127],[117,1,120,7],[117,8,120,14],[117,15,120,30],[117,31,120,37],[117,38,120,44],[117,45,120,60],[117,61,120,67],[113,121,116,127],[113,128,116,134],[113,135,116,150],[113,151,116,157],[113,158,116,164],[113,61,116,67],[113,68,116,74],[113,75,116,90],[113,91,116,97],[113,98,116,104],[121,91,124,97],[121,98,124,104],[121,105,124,120],[121,121,124,127],[121,128,124,134],[117,188,120,194],[117,195,120,210],[121,1,124,7],[121,8,124,14],[121,15,124,30],[121,31,124,37],[121,38,124,44],[121,45,124,60],[121,61,124,67],[121,68,124,74],[117,128,120,134],[117,135,120,150],[117,151,120,157],[117,158,120,164],[117,165,120,180],[117,181,120,187],[117,68,120,74],[117,75,120,90],[117,91,120,97],[121,195,124,210],[121,135,124,150],[121,151,124,157],[121,158,124,164],[121,165,124,180],[125,1,128,7],[125,8,128,14],[125,15,128,30],[125,31,128,37],[125,38,128,44],[125,45,128,60],[125,61,128,67],[125,68,128,74],[125,75,128,90],[121,181,124,187],[121,188,124,194],[121,75,124,90],[125,151,128,157],[125,158,128,164],[125,165,128,180],[125,181,128,187],[125,188,128,194],[129,181,132,187],[129,188,132,194],[125,195,128,210],[125,91,128,97],[125,98,128,104],[125,105,128,120],[125,121,128,127],[125,128,128,134],[125,135,128,150],[129,91,132,97],[129,98,132,104],[129,105,132,120],[129,128,132,134],[129,135,132,150],[129,151,132,157],[129,158,132,164],[129,165,132,180],[129,1,132,7],[129,8,132,14],[133,188,136,194],[133,195,136,210],[129,15,132,30],[129,31,132,37],[129,38,132,44],[129,45,132,60],[137,15,140,30],[137,31,140,37],[137,38,140,44],[137,45,140,60],[137,61,140,67],[137,68,140,74],[133,128,136,134],[129,195,132,210],[133,1,136,7],[133,8,136,14],[133,15,136,30],[133,31,136,37],[133,38,136,44],[133,45,136,60],[133,61,136,67],[129,121,132,127],[129,61,132,67],[129,68,132,74],[129,75,132,90],[133,135,136,150],[133,151,136,157],[133,158,136,164],[133,165,136,180],[133,181,136,187],[133,68,136,74],[133,75,136,90],[133,91,136,97],[133,98,136,104],[133,105,136,120],[133,121,136,127],[137,195,140,210],[141,1,144,7],[141,8,144,14],[141,15,144,30],[141,31,144,37],[141,38,144,44],[141,45,144,60],[141,61,144,67],[141,68,144,74],[141,75,144,90],[137,135,140,150],[137,151,140,157],[137,158,140,164],[137,165,140,180],[137,181,140,187],[137,188,140,194],[137,75,140,90],[137,91,140,97],[137,98,140,104],[137,105,140,120],[137,121,140,127],[137,128,140,134],[137,1,140,7],[137,8,140,14],[151,55,153,59],[151,108,153,207],[141,151,144,157],[141,158,144,164],[141,165,144,180],[141,181,144,187],[141,188,144,194],[141,195,144,210],[141,91,144,97],[141,98,144,104],[141,105,144,120],[141,121,144,127],[141,128,144,134],[141,135,144,150],[159,96,161,97],[159,108,161,207],[166,2,168,32],[166,90,168,103],[0,13,5,149],[8,97,10,99],[8,113,10,115],[8,105,10,107],[155,2,157,25],[155,55,157,78],[155,108,157,207],[159,2,161,7],[159,15,161,21],[159,29,161,36],[159,43,161,44],[159,55,161,60],[159,68,161,74],[159,82,161,89],[147,2,149,26],[147,34,149,35],[147,55,149,79],[147,87,149,88],[147,108,149,207],[151,2,153,6]]}
[null,"大　会　名",null,null,null,null,null,null,null,null,null,null,null,{"$f":"IF(入力!$B$4=0,\"\",入力!$B$4)","v":"令和7年度　東播高等学校バレーボール秋季リーグ戦大会"}]
[]
[]
[]
[]
[]
[null,"開　催　地",null,null,null,null,null,null,null,null,null,null,null,{"$f":"IF(入力!$B$6=0,\"\",入力!$B$6)","v":"加古川市"}]
[null,null,null,null,null,null,null,null,null,null,null,null,null,null,null,null,null,null,null,null,null,null,null,null,null,null,null,null,null,null,null,null,null,null,null,null,null,null,null,null,null,null,null,null,null,null,null,null,null,null,null,null,null,null,null,null,null,null,null,null,null,null,null,null,null,null,null,null,null,null,null,null,null,null,null,null,null,null,"開 催 日",null,null,null,null,null,null,null,null,null,null,null,"  　　　　  年        月       日",null,null,null,null,null,null,null,null,null,null,null,null,null,null,null,null,null,null,null,null,null,null,null,null,null,null,null,"試合設定時刻",null,null,null,null,null,null,null,null,null,null,null,null,null,null," ： "]
[null,null,null,null,null,null,null,null,null,null,null,null,null,null,null,null,null,null,null,null,null,null,null,null,null,null,null,null,null,null,null,null,null,null,null,null,null,null,null,null,null,null,null,null,null,null,null,null,null,null,null,null,null,null,null,null,null,null,null,null,null,null,null,null,null,null,null,null,null,null,null,null,null,null,null,null,null,null,null,null,null,null,null,null,null,null,null,null,null,null,{"$f":"IF(入力!$B$10=0,\"\",入力!$B$10)","v":2025},null,null,null,null,null,null,"年",null,null,null,{"$f":"IF(入力!$D$10=0,\"\",入力!$D$10)","v":4},null,null,null,"月",null,null,null,{"$f":"IF(入力!$F$10=0,\"\",入力!$F$10)","v":16},null,null,null,"日",null,null,null,null,null,null,null,null,null,null,null,null,null,null,null,null,null,null,null,null,null,null,null,null,null,"："]
[]
[]
[null,"会　場　名",null,null,null,null,null,null,null,null,null,null,null,{"$f":"IF(入力!$B$8=0,\"\",入力!$B$8)","v":""}]
[]
[null,null,null,null,null,null,null,null,null,null,null,null,null,null,null,null,null,null,null,null,null,null,null,null,null,null,null,null,null,null,null,null,null,null,null,null,null,null,null,null,null,null,null,null,null,null,null,null,null,null,null,null,null,null,null,null,null,null,null,null,null,null,null,null,null,null,null,null,null,null,null,null,null,null,null,null,null,null,null,null,null,null,null,null,null,null,null,null,null,null,null,null,null,null,null,null,null,null,null,null,null,null,null,null,null,null,null,null,null,null,null,null,null,null,null,null,null,null,null,null,null,null,null,null,null,null,null,null,null,null,null,null,null,null,null,null,null,null,null,null,null,null,null,null,null,null,null,null,null,null,null,null,null,null,null,null,null,null,null,null,null,null,null,null,null,null,null,null,null,null,null,null,null,null,null,null,null,null,null,null,null,null,null,null,null,null,null,null,null,null,null,null,null,null,null,null,null,null,null,null,null,null,"JVA-⑥2025"]
[null,null,null,null,null,null,null,null,null,null,null,null,null,null,null,null,null,null,null,null,null,null,null,null,null,null,null,null,null,null,null,null,null,null,null,null,null,null,null,null,null,null,null,null,null,null,null,null,null,null,null,null,null,null,null,null,null,null,null,null,null,null,null,null,null,null,null,null,null,null,null,null,null,null,null,null,null,null,"A\nor\nB",null,null,null,null,null,null,null,null,null,null,null,null,null,null,null,null,null,null,null,null,null,null,null,null,null,null,null,null,null,"対戦チーム\nvs",null,null,null,null,null,null,null,null,null,null,null,null,null,null,null,null,null,null,null,null,null,null,null,null,null,null,null,null,null,null,null,null,null,null,null,null,null,"A\nor\nB"]
[null,null,null,null,null,null,null,null,null,null,null,null,null,null,null,null,null,null,null,null,null,null,null,null,null,null,null,null,null,null,null,null,null,null,null,null,null,null,null,null,null,null,null,null,null,null,null,null,null,null,null,null,null,null,null,null,null,null,null,null,null,null,null,null,null,null,null,null,null,null,null,null,null,null,null,null,null,null,null,null,null,null,null,null,null,null,null,{"$f":"IF(入力!$F$12=0,\"\",入力!$F$12)","v":"明石商業"},null,null,null,null,null,null,null,null,null,null,null,null,null,null,null,null,null,null,null,null,null,null,null,null,null,null,null,null,null,null,null,{"$f":"IF(入力!$H$12=0,\"\",入力!$H$12)","v":"明石城西"}]
[]
[null,"男　女　別",null,null,null,null,null,null,null,null,null,null,null,null,null,null,null,null,null,null,null,null,null,null,null,null,null,null,null,null,null,null,null,null,null,null,null,null,null,null,null,null,null,null,null,null,null,null,null,null,null,{"$f":"IF(入力!$D$12=0,\"\",入力!$D$12)","v":"2部-1"},null,null,null,null,null,null,null,null,null,null,null,null,null,null,null,null,null,null,null,null,null,null,null,null,null,null,null,null,null,null,null,null,null,null,null,null,null,null,null,null,null,null,null,null,null,null,null,null,null,null,null,null,null,null,null,null,null,null,null,null,null,null,null,null,null,null,null,null,null,null,null,null,null,null,null,null,null,null,null,null,null,null,null,null,null,null,null,null,null,null,null,null,null,null,null,null,null,null,"リベロコントロールシート"]
[null,null,null,null,null,null,null,null,null,null,null,null,null,null,"男子",null,null,null,null,null,null,null,null,null,null,null,"女子",null,null,null,null,null,null,null,null,null,null,null,null,null,"試合番号"]
[]
[]
[]
[]
[null,"第１セット",null,null,null,null,null,null,null,null,null,null,null,null,null,null,null,null,null,null,null,null,null,null,null,null,null,null,null,null,null,null,null,null,null,null,null,null,null,null,null,null,null,null,null,null,null,null,null,null,null,null,null,null,null,null,null,null,null,null,null,"第２セット",null,null,null,null,null,null,null,null,null,null,null,null,null,null,null,null,null,null,null,null,null,null,null,null,null,null,null,null,null,null,null,null,null,null,null,null,null,null,null,null,null,null,null,null,null,null,null,null,null,null,null,null,null,null,null,null,null,null,null,"第３セット"]
[]
[]
[]
[]
[null,"Ａ",null,null,null,null,null,null,null,null,null,null,null,null,null,null,null,null,null,null,null,null,null,null,null,null,null,null,null,null,null,"Ｂ",null,null,null,null,null,null,null,null,null,null,null,null,null,null,null,null,null,null,null,null,null,null,null,null,null,null,null,null,null,"Ｂ",null,null,null,null,null,null,null,null,null,null,null,null,null,null,null,null,null,null,null,null,null,null,null,null,null,null,null,null,null,"Ａ"]
[]
[]
[]
[]
[null,"リベロ",null,null,null,null,null,null,"交替",null,null,null,null,null,null,"得点",null,null,null,null,null,null,null,null,null,null,null,null,null,null,null,"リベロ",null,null,null,null,null,null,"交替",null,null,null,null,null,null,"得点",null,null,null,null,null,null,null,null,null,null,null,null,null,null,null,"リベロ",null,null,null,null,null,null,"交替",null,null,null,null,null,null,"得点",null,null,null,null,null,null,null,null,null,null,null,null,null,null,null,"リベロ",null,null,null,null,null,null,"交替",null,null,null,null,null,null,"得点",null,null,null,null,null,null,null,null,null,null,null,null,null,null,null,"リベロ",null,null,null,null,null,null,"交替",null,null,null,null,null,null,"得点",null,null,null,null,null,null,null,null,null,null,null,null,null,null,null,"リベロ",null,null,null,null,null,null,"交替",null,null,null,null,null,null,"得点",null,null,null,null,null,null,null,null,null,null,null,null,null,null,null,"リベロ",null,null,null,null,null,null,"交替",null,null,null,null,null,null,"得点"]
[]
[]
[]
[null,null,null,null,null,null,null,null,null,null,null,null,null,null,null,"：",null,null,null,null,null,null,null,null,null,null,null,null,null,null,null,null,null,null,null,null,null,null,null,null,null,null,null,null,null,"：",null,null,null,null,null,null,null,null,null,null,null,null,null,null,null,null,null,null,null,null,null,null,null,null,null,null,null,null,null,"：",null,null,null,null,null,null,null,null,null,null,null,null,null,null,null,null,null,null,null,null,null,null,null,null,null,null,null,null,null,"：",null,null,null,null,null,null,null,null,null,null,null,null,null,null,null,null,null,null,null,null,null,null,null,null,null,null,null,null,null,"：",null,null,null,null,null,null,null,null,null,null,null,null,null,null,null,null,null,null,null,null,null,null,null,null,null,null,null,null,null,"：",null,null,null,null,null,null,null,null,null,null,null,null,null,null,null,null,null,null,null,null,null,null,null,null,null,null,null,null,null,"："]
[]
[]
[]
[null,null,null,null,null,null,null,null,null,null,null,null,null,null,null,"：",null,null,null,null,null,null,null,null,null,null,null,null,null,null,null,null,null,null,null,null,null,null,null,null,null,null,null,null,null,"：",null,null,null,null,null,null,null,null,null,null,null,null,null,null,null,null,null,null,null,null,null,null,null,null,null,null,null,null,null,"：",null,null,null,null,null,null,null,null,null,null,null,null,null,null,null,null,null,null,null,null,null,null,null,null,null,null,null,null,null,"：",null,null,null,null,null,null,null,null,null,null,null,null,null,null,null,null,null,null,null,null,null,null,null,null,null,null,null,null,null,"：",null,null,null,null,null,null,null,null,null,null,null,null,null,null,null,null,null,null,null,null,null,null,null,null,null,null,null,null,null,"：",null,null,null,null,null,null,null,null,null,null,null,null,null,null,null,null,null,null,null,null,null,null,null,null,null,null,null,null,null,"："]
[]
[]
[]
[null,null,null,null,null,null,null,null,null,null,null,null,null,null,null,"：",null,null,null,null,null,null,null,null,null,null,null,null,null,null,null,null,null,null,null,null,null,null,null,null,null,null,null,null,null,"：",null,null,null,null,null,null,null,null,null,null,null,null,null,null,null,null,null,null,null,null,null,null,null,null,null,null,null,null,null,"：",null,null,null,null,null,null,null,null,null,null,null,null,null,null,null,null,null,null,null,null,null,null,null,null,null,null,null,null,null,"：",null,null,null,null,null,null,null,null,null,null,null,null,null,null,null,null,null,null,null,null,null,null,null,null,null,null,null,null,null,"：",null,null,null,null,null,null,null,null,null,null,null,null,null,null,null,null,null,null,null,null,null,null,null,null,null,null,null,null,null,"：",null,null,null,null,null,null,null,null,null,null,null,null,null,null,null,null,null,null,null,null,null,null,null,null,null,null,null,null,null,"："]
[]
[]
[]
[null,null,null,null,null,null,null,null,null,null,null,null,null,null,null,"：",null,null,null,null,null,null,null,null,null,null,null,null,null,null,null,null,null,null,null,null,null,null,null,null,null,null,null,null,null,"：",null,null,null,null,null,null,null,null,null,null,null,null,null,null,null,null,null,null,null,null,null,null,null,null,null,null,null,null,null,"：",null,null,null,null,null,null,null,null,null,null,null,null,null,null,null,null,null,null,null,null,null,null,null,null,null,null,null,null,null,"：",null,null,null,null,null,null,null,null,null,null,null,null,null,null,null,null,null,null,null,null,null,null,null,null,null,null,null,null,null,"：",null,null,null,null,null,null,null,null,null,null,null,null,null,null,null,null,null,null,null,null,null,null,null,null,null,null,null,null,null,"：",null,null,null,null,null,null,null,null,null,null,null,null,null,null,null,null,null,null,null,null,null,null,null,null,null,null,null,null,null,"："]
[]
[]
[]
[null,null,null,null,null,null,null,null,null,null,null,null,null,null,null,"：",null,null,null,null,null,null,null,null,null,null,null,null,null,null,null,null,null,null,null,null,null,null,null,null,null,null,null,null,null,"：",null,null,null,null,null,null,null,null,null,null,null,null,null,null,null,null,null,null,null,null,null,null,null,null,null,null,null,null,null,"：",null,null,null,null,null,null,null,null,null,null,null,null,null,null,null,null,null,null,null,null,null,null,null,null,null,null,null,null,null,"：",null,null,null,null,null,null,null,null,null,null,null,null,null,null,null,null,null,null,null,null,null,null,null,null,null,null,null,null,null,"：",null,null,null,null,null,null,null,null,null,null,null,null,null,null,null,null,null,null,null,null,null,null,null,null,null,null,null,null,null,"：",null,null,null,null,null,null,null,null,null,null,null,null,null,null,null,null,null,null,null,null,null,null,null,null,null,null,null,null,null,"："]
[]
[]
[]
[null,null,null,null,null,null,null,null,null,null,null,null,null,null,null,"：",null,null,null,null,null,null,null,null,null,null,null,null,null,null,null,null,null,null,null,null,null,null,null,null,null,null,null,null,null,"：",null,null,null,null,null,null,null,null,null,null,null,null,null,null,null,null,null,null,null,null,null,null,null,null,null,null,null,null,null,"：",null,null,null,null,null,null,null,null,null,null,null,null,null,null,null,null,null,null,null,null,null,null,null,null,null,null,null,null,null,"：",null,null,null,null,null,null,null,null,null,null,null,null,null,null,null,null,null,null,null,null,null,null,null,null,null,null,null,null,null,"：",null,null,null,null,null,null,null,null,null,null,null,null,null,null,null,null,null,null,null,null,null,null,null,null,null,null,null,null,null,"：",null,null,null,null,null,null,null,null,null,null,null,null,null,null,null,null,null,null,null,null,null,null,null,null,null,null,null,null,null,"："]
[]
[]
[]
[null,null,null,null,null,null,null,null,null,null,null,null,null,null,null,"：",null,null,null,null,null,null,null,null,null,null,null,null,null,null,null,null,null,null,null,null,null,null,null,null,null,null,null,null,null,"：",null,null,null,null,null,null,null,null,null,null,null,null,null,null,null,null,null,null,null,null,null,null,null,null,null,null,null,null,null,"：",null,null,null,null,null,null,null,null,null,null,null,null,null,null,null,null,null,null,null,null,null,null,null,null,null,null,null,null,null,"：",null,null,null,null,null,null,null,null,null,null,null,null,null,null,null,null,null,null,null,null,null,null,null,null,null,null,null,null,null,"：",null,null,null,null,null,null,null,null,null,null,null,null,null,null,null,null,null,null,null,null,null,null,null,null,null,null,null,null,null,"：",null,null,null,null,null,null,null,null,null,null,null,null,null,null,null,null,null,null,null,null,null,null,null,null,null,null,null,null,null,"："]
[]
[]
[]
[null,null,null,null,null,null,null,null,null,null,null,null,null,null,null,"：",null,null,null,null,null,null,null,null,null,null,null,null,null,null,null,null,null,null,null,null,null,null,null,null,null,null,null,null,null,"：",null,null,null,null,null,null,null,null,null,null,null,null,null,null,null,null,null,null,null,null,null,null,null,null,null,null,null,null,null,"：",null,null,null,null,null,null,null,null,null,null,null,null,null,null,null,null,null,null,null,null,null,null,null,null,null,null,null,null,null,"：",null,null,null,null,null,null,null,null,null,null,null,null,null,null,null,null,null,null,null,null,null,null,null,null,null,null,null,null,null,"：",null,null,null,null,null,null,null,null,null,null,null,null,null,null,null,null,null,null,null,null,null,null,null,null,null,null,null,null,null,"：",null,null,null,null,null,null,null,null,null,null,null,null,null,null,null,null,null,null,null,null,null,null,null,null,null,null,null,null,null,"："]
[]
[]
[]
[null,null,null,null,null,null,null,null,null,null,null,null,null,null,null,"：",null,null,null,null,null,null,null,null,null,null,null,null,null,null,null,null,null,null,null,null,null,null,null,null,null,null,null,null,null,"：",null,null,null,null,null,null,null,null,null,null,null,null,null,null,null,null,null,null,null,null,null,null,null,null,null,null,null,null,null,"：",null,null,null,null,null,null,null,null,null,null,null,null,null,null,null,null,null,null,null,null,null,null,null,null,null,null,null,null,null,"：",null,null,null,null,null,null,null,null,null,null,null,null,null,null,null,null,null,null,null,null,null,null,null,null,null,null,null,null,null,"：",null,null,null,null,null,null,null,null,null,null,null,null,null,null,null,null,null,null,null,null,null,null,null,null,null,null,null,null,null,"：",null,null,null,null,null,null,null,null,null,null,null,null,null,null,null,null,null,null,null,null,null,null,null,null,null,null,null,null,null,"："]
[]
[]
[]
[null,null,null,null,null,null,null,null,null,null,null,null,null,null,null,"：",null,null,null,null,null,null,null,null,null,null,null,null,null,null,null,null,null,null,null,null,null,null,null,null,null,null,null,null,null,"：",null,null,null,null,null,null,null,null,null,null,null,null,null,null,null,null,null,null,null,null,null,null,null,null,null,null,null,null,null,"：",null,null,null,null,null,null,null,null,null,null,null,null,null,null,null,null,null,null,null,null,null,null,null,null,null,null,null,null,null,"：",null,null,null,null,null,null,null,null,null,null,null,null,null,null,null,null,null,null,null,null,null,null,null,null,null,null,null,null,null,"：",null,null,null,null,null,null,null,null,null,null,null,null,null,null,null,null,null,null,null,null,null,null,null,null,null,null,null,null,null,"：",null,null,null,null,null,null,null,null,null,null,null,null,null,null,null,null,null,null,null,null,null,null,null,null,null,null,null,null,null,"："]
[]
[]
[]
[null,null,null,null,null,null,null,null,null,null,null,null,null,null,null,"：",null,null,null,null,null,null,null,null,null,null,null,null,null,null,null,null,null,null,null,null,null,null,null,null,null,null,null,null,null,"：",null,null,null,null,null,null,null,null,null,null,null,null,null,null,null,null,null,null,null,null,null,null,null,null,null,null,null,null,null,"：",null,null,null,null,null,null,null,null,null,null,null,null,null,null,null,null,null,null,null,null,null,null,null,null,null,null,null,null,null,"：",null,null,null,null,null,null,null,null,null,null,null,null,null,null,null,null,null,null,null,null,null,null,null,null,null,null,null,null,null,"：",null,null,null,null,null,null,null,null,null,null,null,null,null,null,null,null,null,null,null,null,null,null,null,null,null,null,null,null,null,"：",null,null,null,null,null,null,null,null,null,null,null,null,null,null,null,null,null,null,null,null,null,null,null,null,null,null,null,null,null,"："]
[]
[]
[]
[null,null,null,null,null,null,null,null,null,null,null,null,null,null,null,"：",null,null,null,null,null,null,null,null,null,null,null,null,null,null,null,null,null,null,null,null,null,null,null,null,null,null,null,null,null,"：",null,null,null,null,null,null,null,null,null,null,null,null,null,null,null,null,null,null,null,null,null,null,null,null,null,null,null,null,null,"：",null,null,null,null,null,null,null,null,null,null,null,null,null,null,null,null,null,null,null,null,null,null,null,null,null,null,null,null,null,"：",null,null,null,null,null,null,null,null,null,null,null,null,null,null,null,null,null,null,null,null,null,null,null,null,null,null,null,null,null,"：",null,null,null,null,null,null,null,null,null,null,null,null,null,null,null,null,null,null,null,null,null,null,null,null,null,null,null,null,null,"：",null,null,null,null,null,null,null,null,null,null,null,null,null,null,null,null,null,null,null,null,null,null,null,null,null,null,null,null,null,"："]
[]
[]
[]
[null,null,null,null,null,null,null,null,null,null,null,null,null,null,null,"：",null,null,null,null,null,null,null,null,null,null,null,null,null,null,null,null,null,null,null,null,null,null,null,null,null,null,null,null,null,"：",null,null,null,null,null,null,null,null,null,null,null,null,null,null,null,null,null,null,null,null,null,null,null,null,null,null,null,null,null,"：",null,null,null,null,null,null,null,null,null,null,null,null,null,null,null,null,null,null,null,null,null,null,null,null,null,null,null,null,null,"：",null,null,null,null,null,null,null,null,null,null,null,null,null,null,null,null,null,null,null,null,null,null,null,null,null,null,null,null,null,"：",null,null,null,null,null,null,null,null,null,null,null,null,null,null,null,null,null,null,null,null,null,null,null,null,null,null,null,null,null,"：",null,null,null,null,null,null,null,null,null,null,null,null,null,null,null,null,null,null,null,null,null,null,null,null,null,null,null,null,null,"："]
[]
[]
[]
[null,null,null,null,null,null,null,null,null,null,null,null,null,null,null,"：",null,null,null,null,null,null,null,null,null,null,null,null,null,null,null,null,null,null,null,null,null,null,null,null,null,null,null,null,null,"：",null,null,null,null,null,null,null,null,null,null,null,null,null,null,null,null,null,null,null,null,null,null,null,null,null,null,null,null,null,"：",null,null,null,null,null,null,null,null,null,null,null,null,null,null,null,null,null,null,null,null,null,null,null,null,null,null,null,null,null,"：",null,null,null,null,null,null,null,null,null,null,null,null,null,null,null,null,null,null,null,null,null,null,null,null,null,null,null,null,null,"：",null,null,null,null,null,null,null,null,null,null,null,null,null,null,null,null,null,null,null,null,null,null,null,null,null,null,null,null,null,"：",null,null,null,null,null,null,null,null,null,null,null,null,null,null,null,null,null,null,null,null,null,null,null,null,null,null,null,null,null,"："]
[]
[]
[]
[null,null,null,null,null,null,null,null,null,null,null,null,null,null,null,"：",null,null,null,null,null,null,null,null,null,null,null,null,null,null,null,null,null,null,null,null,null,null,null,null,null,null,null,null,null,"：",null,null,null,null,null,null,null,null,null,null,null,null,null,null,null,null,null,null,null,null,null,null,null,null,null,null,null,null,null,"：",null,null,null,null,null,null,null,null,null,null,null,null,null,null,null,null,null,null,null,null,null,null,null,null,null,null,null,null,null,"：",null,null,null,null,null,null,null,null,null,null,null,null,null,null,null,null,null,null,null,null,null,null,null,null,null,null,null,null,null,"：",null,null,null,null,null,null,null,null,null,null,null,null,null,null,null,null,null,null,null,null,null,null,null,null,null,null,null,null,null,"：",null,null,null,null,null,null,null,null,null,null,null,null,null,null,null,null,null,null,null,null,null,null,null,null,null,null,null,null,null,"："]
[]
[]
[]
[null,null,null,null,null,null,null,null,null,null,null,null,null,null,null,"：",null,null,null,null,null,null,null,null,null,null,null,null,null,null,null,null,null,null,null,null,null,null,null,null,null,null,null,null,null,"：",null,null,null,null,null,null,null,null,null,null,null,null,null,null,null,null,null,null,null,null,null,null,null,null,null,null,null,null,null,"：",null,null,null,null,null,null,null,null,null,null,null,null,null,null,null,null,null,null,null,null,null,null,null,null,null,null,null,null,null,"：",null,null,null,null,null,null,null,null,null,null,null,null,null,null,null,null,null,null,null,null,null,null,null,null,null,null,null,null,null,"：",null,null,null,null,null,null,null,null,null,null,null,null,null,null,null,null,null,null,null,null,null,null,null,null,null,null,null,null,null,"：",null,null,null,null,null,null,null,null,null,null,null,null,null,null,null,null,null,null,null,null,null,null,null,null,null,null,null,null,null,"："]
[]
[]
[]
[null,null,null,null,null,null,null,null,null,null,null,null,null,null,null,"：",null,null,null,null,null,null,null,null,null,null,null,null,null,null,null,null,null,null,null,null,null,null,null,null,null,null,null,null,null,"：",null,null,null,null,null,null,null,null,null,null,null,null,null,null,null,null,null,null,null,null,null,null,null,null,null,null,null,null,null,"：",null,null,null,null,null,null,null,null,null,null,null,null,null,null,null,null,null,null,null,null,null,null,null,null,null,null,null,null,null,"：",null,null,null,null,null,null,null,null,null,null,null,null,null,null,null,null,null,null,null,null,null,null,null,null,null,null,null,null,null,"：",null,null,null,null,null,null,null,null,null,null,null,null,null,null,null,null,null,null,null,null,null,null,null,null,null,null,null,null,null,"：",null,null,null,null,null,null,null,null,null,null,null,null,null,null,null,null,null,null,null,null,null,null,null,null,null,null,null,null,null,"："]
[]
[]
[]
[null,null,null,null,null,null,null,null,null,null,null,null,null,null,null,"：",null,null,null,null,null,null,null,null,null,null,null,null,null,null,null,null,null,null,null,null,null,null,null,null,null,null,null,null,null,"：",null,null,null,null,null,null,null,null,null,null,null,null,null,null,null,null,null,null,null,null,null,null,null,null,null,null,null,null,null,"：",null,null,null,null,null,null,null,null,null,null,null,null,null,null,null,null,null,null,null,null,null,null,null,null,null,null,null,null,null,"：",null,null,null,null,null,null,null,null,null,null,null,null,null,null,null,null,null,null,null,null,null,null,null,null,null,null,null,null,null,"：",null,null,null,null,null,null,null,null,null,null,null,null,null,null,null,null,null,null,null,null,null,null,null,null,null,null,null,null,null,"：",null,null,null,null,null,null,null,null,null,null,null,null,null,null,null,null,null,null,null,null,null,null,null,null,null,null,null,null,null,"："]
[]
[]
[]
[null,null,null,null,null,null,null,null,null,null,null,null,null,null,null,"：",null,null,null,null,null,null,null,null,null,null,null,null,null,null,null,null,null,null,null,null,null,null,null,null,null,null,null,null,null,"：",null,null,null,null,null,null,null,null,null,null,null,null,null,null,null,null,null,null,null,null,null,null,null,null,null,null,null,null,null,"：",null,null,null,null,null,null,null,null,null,null,null,null,null,null,null,null,null,null,null,null,null,null,null,null,null,null,null,null,null,"：",null,null,null,null,null,null,null,null,null,null,null,null,null,null,null,null,null,null,null,null,null,null,null,null,null,null,null,null,null,"：",null,null,null,null,null,null,null,null,null,null,null,null,null,null,null,null,null,null,null,null,null,null,null,null,null,null,null,null,null,"：",null,null,null,null,null,null,null,null,null,null,null,null,null,null,null,null,null,null,null,null,null,null,null,null,null,null,null,null,null,"："]
[]
[]
[]
[null,null,null,null,null,null,null,null,null,null,null,null,null,null,null,"：",null,null,null,null,null,null,null,null,null,null,null,null,null,null,null,null,null,null,null,null,null,null,null,null,null,null,null,null,null,"：",null,null,null,null,null,null,null,null,null,null,null,null,null,null,null,null,null,null,null,null,null,null,null,null,null,null,null,null,null,"：",null,null,null,null,null,null,null,null,null,null,null,null,null,null,null,null,null,null,null,null,null,null,null,null,null,null,null,null,null,"：",null,null,null,null,null,null,null,null,null,null,null,null,null,null,null,null,null,null,null,null,null,null,null,null,null,null,null,null,null,"：",null,null,null,null,null,null,null,null,null,null,null,null,null,null,null,null,null,null,null,null,null,null,null,null,null,null,null,null,null,"：",null,null,null,null,null,null,null,null,null,null,null,null,null,null,null,null,null,null,null,null,null,null,null,null,null,null,null,null,null,"："]
[]
[]
[]
[null,null,null,null,null,null,null,null,null,null,null,null,null,null,null,"：",null,null,null,null,null,null,null,null,null,null,null,null,null,null,null,null,null,null,null,null,null,null,null,null,null,null,null,null,null,"：",null,null,null,null,null,null,null,null,null,null,null,null,null,null,null,null,null,null,null,null,null,null,null,null,null,null,null,null,null,"：",null,null,null,null,null,null,null,null,null,null,null,null,null,null,null,null,null,null,null,null,null,null,null,null,null,null,null,null,null,"：",null,null,null,null,null,null,null,null,null,null,null,null,null,null,null,null,null,null,null,null,null,null,null,null,null,null,null,null,null,"：",null,null,null,null,null,null,null,null,null,null,null,null,null,null,null,null,null,null,null,null,null,null,null,null,null,null,null,null,null,"：",null,null,null,null,null,null,null,null,null,null,null,null,null,null,null,null,null,null,null,null,null,null,null,null,null,null,null,null,null,"："]
[]
[]
[]
[null,null,null,null,null,null,null,null,null,null,null,null,null,null,null,"：",null,null,null,null,null,null,null,null,null,null,null,null,null,null,null,null,null,null,null,null,null,null,null,null,null,null,null,null,null,"：",null,null,null,null,null,null,null,null,null,null,null,null,null,null,null,null,null,null,null,null,null,null,null,null,null,null,null,null,null,"：",null,null,null,null,null,null,null,null,null,null,null,null,null,null,null,null,null,null,null,null,null,null,null,null,null,null,null,null,null,"：",null,null,null,null,null,null,null,null,null,null,null,null,null,null,null,null,null,null,null,null,null,null,null,null,null,null,null,null,null,"：",null,null,null,null,null,null,null,null,null,null,null,null,null,null,null,null,null,null,null,null,null,null,null,null,null,null,null,null,null,"：",null,null,null,null,null,null,null,null,null,null,null,null,null,null,null,null,null,null,null,null,null,null,null,null,null,null,null,null,null,"："]
[]
[]
[]
[null,null,null,null,null,null,null,null,null,null,null,null,null,null,null,"：",null,null,null,null,null,null,null,null,null,null,null,null,null,null,null,null,null,null,null,null,null,null,null,null,null,null,null,null,null,"：",null,null,null,null,null,null,null,null,null,null,null,null,null,null,null,null,null,null,null,null,null,null,null,null,null,null,null,null,null,"：",null,null,null,null,null,null,null,null,null,null,null,null,null,null,null,null,null,null,null,null,null,null,null,null,null,null,null,null,null,"：",null,null,null,null,null,null,null,null,null,null,null,null,null,null,null,null,null,null,null,null,null,null,null,null,null,null,null,null,null,"：",null,null,null,null,null,null,null,null,null,null,null,null,null,null,null,null,null,null,null,null,null,null,null,null,null,null,null,null,null,"：",null,null,null,null,null,null,null,null,null,null,null,null,null,null,null,null,null,null,null,null,null,null,null,null,null,null,null,null,null,"："]
[]
[]
[]
[null,null,null,null,null,null,null,null,null,null,null,null,null,null,null,"：",null,null,null,null,null,null,null,null,null,null,null,null,null,null,null,null,null,null,null,null,null,null,null,null,null,null,null,null,null,"：",null,null,null,null,null,null,null,null,null,null,null,null,null,null,null,null,null,null,null,null,null,null,null,null,null,null,null,null,null,"：",null,null,null,null,null,null,null,null,null,null,null,null,null,null,null,null,null,null,null,null,null,null,null,null,null,null,null,null,null,"：",null,null,null,null,null,null,null,null,null,null,null,null,null,null,null,null,null,null,null,null,null,null,null,null,null,null,null,null,null,"：",null,null,null,null,null,null,null,null,null,null,null,null,null,null,null,null,null,null,null,null,null,null,null,null,null,null,null,null,null,"：",null,null,null,null,null,null,null,null,null,null,null,null,null,null,null,null,null,null,null,null,null,null,null,null,null,null,null,null,null,"："]
[]
[]
[]
[null,null,null,null,null,null,null,null,null,null,null,null,null,null,null,"：",null,null,null,null,null,null,null,null,null,null,null,null,null,null,null,null,null,null,null,null,null,null,null,null,null,null,null,null,null,"：",null,null,null,null,null,null,null,null,null,null,null,null,null,null,null,null,null,null,null,null,null,null,null,null,null,null,null,null,null,"：",null,null,null,null,null,null,null,null,null,null,null,null,null,null,null,null,null,null,null,null,null,null,null,null,null,null,null,null,null,"：",null,null,null,null,null,null,null,null,null,null,null,null,null,null,null,null,null,null,null,null,null,null,null,null,null,null,null,null,null,"：",null,null,null,null,null,null,null,null,null,null,null,null,null,null,null,null,null,null,null,null,null,null,null,null,null,null,null,null,null,"：",null,null,null,null,null,null,null,null,null,null,null,null,null,null,null,null,null,null,null,null,null,null,null,null,null,null,null,null,null,"："]
[]
[]
[]
[null,null,null,null,null,null,null,null,null,null,null,null,null,null,null,"：",null,null,null,null,null,null,null,null,null,null,null,null,null,null,null,null,null,null,null,null,null,null,null,null,null,null,null,null,null,"：",null,null,null,null,null,null,null,null,null,null,null,null,null,null,null,null,null,null,null,null,null,null,null,null,null,null,null,null,null,"：",null,null,null,null,null,null,null,null,null,null,null,null,null,null,null,null,null,null,null,null,null,null,null,null,null,null,null,null,null,"：",null,null,null,null,null,null,null,null,null,null,null,null,null,null,null,null,null,null,null,null,null,null,null,null,null,null,null,null,null,"：",null,null,null,null,null,null,null,null,null,null,null,null,null,null,null,null,null,null,null,null,null,null,null,null,null,null,null,null,null,"：",null,null,null,null,null,null,null,null,null,null,null,null,null,null,null,null,null,null,null,null,null,null,null,null,null,null,null,null,null,"："]
[]
[]
[]
[null,null,null,null,null,null,null,null,null,null,null,null,null,null,null,"：",null,null,null,null,null,null,null,null,null,null,null,null,null,null,null,null,null,null,null,null,null,null,null,null,null,null,null,null,null,"：",null,null,null,null,null,null,null,null,null,null,null,null,null,null,null,null,null,null,null,null,null,null,null,null,null,null,null,null,null,"：",null,null,null,null,null,null,null,null,null,null,null,null,null,null,null,null,null,null,null,null,null,null,null,null,null,null,null,null,null,"：",null,null,null,null,null,null,null,null,null,null,null,null,null,null,null,null,null,null,null,null,null,null,null,null,null,null,null,null,null,"：",null,null,null,null,null,null,null,null,null,null,null,null,null,null,null,null,null,null,null,null,null,null,null,null,null,null,null,null,null,"：",null,null,null,null,null,null,null,null,null,null,null,null,null,null,null,null,null,null,null,null,null,null,null,null,null,null,null,null,null,"："]
[]
[]
[]
[]
[]
[null,null,"Aチーム： リベロ No：",null,null,null,null,null,null,null,null,null,null,null,null,null,null,null,null,null,null,null,null,null,null,null,null,null,null,null,null,null,null,null,"/",null,null,null,null,null,null,null,null,null,null,null,null,null,null,null,null,null,null,null,null,"Bチーム： リベロ No：",null,null,null,null,null,null,null,null,null,null,null,null,null,null,null,null,null,null,null,null,null,null,null,null,null,null,null,null,null,null,null,"/",null,null,null,null,null,null,null,null,null,null,null,null,null,null,null,null,null,null,null,null,"特記事項 ："]
[]
[]
[]
[]
[]
[]
[]
[null,null,"再指名 ：",null,null,null,null,null,null,null,null,null,null,null,null,null,null,null,null,null,null,null,null,null,null,null,null,null,null,null,null,null,null,null,null,null,null,null,null,null,null,null,null,null,null,null,null,null,null,null,null,null,null,null,null,"再指名 ："]
[]
[]
[]
[null,null,"No ：",null,null,null,null,null,null,null,null,null,null,null,null,"セット ：",null,null,null,null,null,null,null,null,null,null,null,null,null,"得点：",null,null,null,null,null,null,null,null,null,null,null,null,null,"：",null,null,null,null,null,null,null,null,null,null,null,"No ：",null,null,null,null,null,null,null,null,null,null,null,null,"セット ：",null,null,null,null,null,null,null,null,null,null,null,null,null,"得点：",null,null,null,null,null,null,null,null,null,null,null,null,null,"："]
[]
[]
[]
[]
[]
[]
[null,null,"アシスタントスコアラー ：",null,null,null,null,null,null,null,null,null,null,null,null,null,null,null,null,null,null,null,null,null,null,null,null,null,null,null,null,null,null,null,null,null,null,null,null,null,null,null,null,null,null,null,null,null,null,null,null,null,null,null,null,null,null,null,null,null,null,null,null,null,null,null,null,null,null,null,null,null,null,null,null,null,null,null,null,null,null,null,null,null,null,null,null,null,null,null,"サイン ："]

{"sheet":"結果集計表","index":3,"n_rows":35,"n_cols":51,"rows_kept":35,"cut":false,"hidden":true,"merged":[[8,22,8,28],[5,28,7,28],[1,1,2,28],[1,32,2,33],[1,34,2,45],[1,47,1,50],[2,47,2,50],[4,0,6,0],[5,1,7,1],[5,2,7,2],[5,6,7,6],[5,7,7,7],[5,44,7,44],[5,48,7,48],[5,49,7,49],[5,29,7,29],[5,30,7,30],[5,34,7,34],[5,35,7,35],[5,36,7,36],[5,37,7,37],[7,0,9,0],[8,1,8,7],[8,8,8,14],[8,15,8,21],[5,8,7,8],[5,9,7,9],[5,13,7,13],[5,14,7,14],[5,15,7,15],[5,16,7,16],[8,36,8,42],[8,43,8,49],[9,1,9,7],[9,8,9,14],[9,15,9,21],[9,22,9,28],[9,29,9,35],[9,36,9,42],[9,43,9,49],[8,29,8,35],[5,41,7,41],[5,42,7,42],[5,43,7,43],[5,20,7,20],[5,21,7,21],[5,22,7,22],[5,23,7,23],[5,27,7,27],[11,14,13,14],[11,15,13,15],[11,16,13,16],[11,20,13,20],[10,0,12,0],[11,1,13,1],[11,2,13,2],[11,6,13,6],[11,7,13,7],[11,8,13,8],[11,42,13,42],[11,43,13,43],[11,44,13,44],[11,48,13,48],[11,49,13,49],[13,0,15,0],[14,1,14,7],[14,8,14,14],[14,15,14,21],[14,22,14,28],[11,30,13,30],[11,34,13,34],[11,35,13,35],[11,36,13,36],[11,37,13,37],[11,41,13,41],[11,21,13,21],[11,22,13,22],[11,23,13,23],[11,27,13,27],[11,28,13,28],[11,29,13,29],[11,9,13,9],[11,13,13,13],[14,29,14,35],[14,36,14,42],[14,43,14,49],[15,1,15,7],[15,8,15,14],[15,15,15,21],[15,22,15,28],[15,29,15,35],[15,36,15,42],[15,43,15,49],[17,14,19,14],[17,15,19,15],[17,16,19,16],[17,20,19,20],[16,0,18,0],[17,1,19,1],[17,2,19,2],[17,6,19,6],[17,7,19,7],[17,8,19,8],[17,42,19,42],[17,43,19,43],[17,44,19,44],[17,48,19,48],[17,49,19,49],[19,0,21,0],[20,1,20,7],[20,8,20,14],[20,15,20,21],[20,22,20,28],[17,30,19,30],[17,34,19,34],[17,35,19,35],[17,36,19,36],[17,37,19,37],[17,41,19,41],[17,21,19,21],[17,22,19,22],[17,23,19,23],[17,27,19,27],[17,28,19,28],[17,29,19,29],[17,9,19,9],[17,13,19,13],[20,29,20,35],[20,36,20,42],[20,43,20,49],[21,1,21,7],[21,8,21,14],[21,15,21,21],[21,22,21,28],[21,29,21,35],[21,36,21,42],[21,43,21,49],[23,14,25,14],[23,15,25,15],[23,16,25,16],[23,20,25,20],[22,0,24,0],[23,1,25,1],[23,2,25,2],[23,6,25,6],[23,7,25,7],[23,8,25,8],[23,42,25,42],[23,43,25,43],[23,44,25,44],[23,48,25,48],[23,49,25,49],[25,0,27,0],[26,1,26,7],[26,8,26,14],[26,15,26,21],[26,22,26,28],[23,30,25,30],[23,34,25,34],[23,35,25,35],[23,36,25,36],[23,37,25,37],[23,41,25,41],[23,21,25,21],[23,22,25,22],[23,23,25,23],[23,27,25,27],[23,28,25,28],[23,29,25,29],[23,9,25,9],[23,13,25,13],[26,29,26,35],[26,36,26,42],[26,43,26,49],[27,1,27,7],[27,8,27,14],[27,15,27,21],[27,22,27,28],[27,29,27,35],[27,36,27,42],[27,43,27,49],[33,1,33,14],[33,29,33,42],[34,1,34,14],[34,29,34,42],[30,1,30,14],[30,29,30,42],[31,1,31,14],[31,29,31,42],[32,1,32,14],[32,29,32,42]]}
[]
[null,{"$f":"入力!$B$4","v":"令和7年度　東播高等学校バレーボール秋季リーグ戦大会"},null,null,null,null,null,null,null,null,null,null,null,null,null,null,null,null,null,null,null,null,null,null,null,null,null,null,null,null,null,null,"会場",null,{"$f":"入力!$B$8","v":0},null,null,null,null,null,null,null,null,null,null,null,null,{"$f":"入力!$B$10&\"　年　\"&入力!$D$10&\"　月　\"&入力!$F$10&\"　日　\"","v":"2025　年　4　月　16　日　"}]
[null,null,null,null,null,null,null,null,null,null,null,null,null,null,null,null,null,null,null,null,null,null,null,null,null,null,null,null,null,null,null,null,null,null,null,null,null,null,null,null,null,null,null,null,null,null,null,{"$f":"入力!$B$10&\"　年　\"&入力!$D$10&\"　月　\"&入力!$F$10+1&\"　日　\"","v":"2025　年　4　月　17　日　"}]
[]
[{"$f":"入力!$J$8","v":"A"},null,null,null,1,null,null,"回戦",null,null,null,2,null,null,"回戦",null,null,null,3,null,null,"回戦",null,null,null,4,null,null,"回戦",null,null,null,5,null,null,"回戦",null,null,null,6,null,null,"回戦",null,null,null,7,null,null,"回戦",{"$f":"IF(入力!$L$5=1,A5,\"\")","v":"A"}]
[null,{"$f":"IFERROR(INDEX(入力!$I$17:$L$36,MATCH($A$5&\"-\"&E5,#REF!,0),3),\"\")","v":""},null,null,"―",null,null,{"$f":"IFERROR(INDEX(入力!$I$17:$L$36,MATCH($A$5&\"-\"&E5,#REF!,0),4),\"\")","v":""},{"$f":"IFERROR(INDEX(入力!$I$17:$L$36,MATCH($A$5&\"-\"&L5,#REF!,0),3),\"\")","v":""},null,null,"―",null,null,{"$f":"IFERROR(INDEX(入力!$I$17:$L$36,MATCH($A$5&\"-\"&L5,#REF!,0),4),\"\")","v":""},{"$f":"IFERROR(INDEX(入力!$I$17:$L$36,MATCH($A$5&\"-\"&S5,#REF!,0),3),\"\")","v":""},null,null,"―",null,null,{"$f":"IFERROR(INDEX(入力!$I$17:$L$36,MATCH($A$5&\"-\"&S5,#REF!,0),4),\"\")","v":""},{"$f":"IFERROR(INDEX(入力!$I$17:$L$36,MATCH($A$5&\"-\"&Z5,#REF!,0),3),\"\")","v":""},null,null,"―",null,null,{"$f":"IFERROR(INDEX(入力!$I$17:$L$36,MATCH($A$5&\"-\"&Z5,#REF!,0),4),\"\")","v":""},{"$f":"IFERROR(INDEX(入力!$I$17:$L$36,MATCH($A$5&\"-\"&AG5,#REF!,0),3),\"\")","v":""},null,null,"―",null,null,{"$f":"IFERROR(INDEX(入力!$I$17:$L$36,MATCH($A$5&\"-\"&AG5,#REF!,0),4),\"\")","v":""},{"$f":"IFERROR(INDEX(入力!$I$17:$L$36,MATCH($A$5&\"-\"&AN5,#REF!,0),3),\"\")","v":""},null,null,"―",null,null,{"$f":"IFERROR(INDEX(入力!$I$17:$L$36,MATCH($A$5&\"-\"&AN5,#REF!,0),4),\"\")","v":""},{"$f":"IFERROR(INDEX(入力!$I$17:$L$36,MATCH($A$5&\"-\"&AU5,#REF!,0),3),\"\")","v":""},null,null,"―",null,null,{"$f":"IFERROR(INDEX(入力!$I$17:$L$36,MATCH($A$5&\"-\"&AU5,#REF!,0),4),\"\")","v":""},{"$f":"IF(入力!$L$5=1,\"ベストサポ―タ―賞\",\"\")","v":"ベストサポ―タ―賞"}]
[null,null,null,null,"―",null,null,null,null,null,null,"―",null,null,null,null,null,null,"―",null,null,null,null,null,null,"―",null,null,null,null,null,null,"―",null,null,null,null,null,null,"―",null,null,null,null,null,null,"―",null,null,null,{"$f":"IF(入力!$L$5=1,\"（　　　　　　　　　　高校）\",\"\")","v":"（　　　　　　　　　　高校）"}]
["コ―ト",null,null,null,"―",null,null,null,null,null,null,"―",null,null,null,null,null,null,"―",null,null,null,null,null,null,"―",null,null,null,null,null,null,"―",null,null,null,null,null,null,"―",null,null,null,null,null,null,"―"]
[null,"主　　　　　　　　　　（　　　　　）",null,null,null,null,null,null,"主　　　　　　　　　　（　　　　　）",null,null,null,null,null,null,"主　　　　　　　　　　（　　　　　）",null,null,null,null,null,null,"主　　　　　　　　　　（　　　　　）",null,null,null,null,null,null,"主　　　　　　　　　　（　　　　　）",null,null,null,null,null,null,"主　　　　　　　　　　（　　　　　）",null,null,null,null,null,null,"主　　　　　　　　　　（　　　　　）"]
[null,"副　　　　　　　　　　（　　　　　）",null,null,null,null,null,null,"副　　　　　　　　　　（　　　　　）",null,null,null,null,null,null,"副　　　　　　　　　　（　　　　　）",null,null,null,null,null,null,"副　　　　　　　　　　（　　　　　）",null,null,null,null,null,null,"副　　　　　　　　　　（　　　　　）",null,null,null,null,null,null,"副　　　　　　　　　　（　　　　　）",null,null,null,null,null,null,"副　　　　　　　　　　（　　　　　）",null,null,null,null,null,null,"優秀選手賞"]
[{"$f":"IF(入力!$L$5=1,A5,IF(入力!$L$5=2,入力!J9,\"\"))","v":"A"},null,null,null,{"$f":"IF(入力!$L$5=1,IF($A$5=$A$11,7,\"\"),IF(入力!$L$5=2,1,\"\"))","v":7},null,null,"回戦",null,null,null,{"$f":"IF(E11=\"\",\"\",E11+1)","v":8},null,null,"回戦",null,null,null,{"$f":"IF(E11=\"\",\"\",E11+2)","v":9},null,null,"回戦",null,null,null,{"$f":"IF(E11=\"\",\"\",E11+3)","v":10},null,null,"回戦",null,null,null,{"$f":"IF(入力!$L$5=1,\"\",IF(入力!$L$5=2,Z11+1,\"\"))","v":""},null,null,"回戦",null,null,null,{"$f":"IF(入力!$L$5=1,\"\",IF(入力!$L$5=2,AG11+1,\"\"))","v":""},null,null,"回戦",null,null,null,{"$f":"IF(入力!$L$5=1,\"\",IF(入力!$L$5=2,AN11+1,\"\"))","v":""},null,null,"回戦","（　　　　　　　　　　　　　）"]
[null,{"$f":"IFERROR(INDEX(入力!$I$17:$L$36,MATCH($A$11&\"-\"&E11,#REF!,0),3),\"\")","v":""},null,null,"―",null,null,{"$f":"IFERROR(INDEX(入力!$I$17:$L$36,MATCH($A$11&\"-\"&E11,#REF!,0),4),\"\")","v":""},{"$f":"IFERROR(INDEX(入力!$I$17:$L$36,MATCH($A$11&\"-\"&L11,#REF!,0),3),\"\")","v":""},null,null,"―",null,null,{"$f":"IFERROR(INDEX(入力!$I$17:$L$36,MATCH($A$11&\"-\"&L11,#REF!,0),4),\"\")","v":""},{"$f":"IFERROR(INDEX(入力!$I$17:$L$36,MATCH($A$11&\"-\"&S11,#REF!,0),3),\"\")","v":""},null,null,"―",null,null,{"$f":"IFERROR(INDEX(入力!$I$17:$L$36,MATCH($A$11&\"-\"&S11,#REF!,0),4),\"\")","v":""},{"$f":"IFERROR(INDEX(入力!$I$17:$L$36,MATCH($A$11&\"-\"&Z11,#REF!,0),3),\"\")","v":""},null,null,"―",null,null,{"$f":"IFERROR(INDEX(入力!$I$17:$L$36,MATCH($A$11&\"-\"&Z11,#REF!,0),4),\"\")","v":""},{"$f":"IFERROR(INDEX(入力!$I$17:$L$36,MATCH($A$11&\"-\"&AG11,#REF!,0),3),\"\")","v":""},null,null,"―",null,null,{"$f":"IFERROR(INDEX(入力!$I$17:$L$36,MATCH($A$11&\"-\"&AG11,#REF!,0),4),\"\")","v":""},{"$f":"IFERROR(INDEX(入力!$I$17:$L$36,MATCH($A$11&\"-\"&AN11,#REF!,0),3),\"\")","v":""},null,null,"―",null,null,{"$f":"IFERROR(INDEX(入力!$I$17:$L$36,MATCH($A$11&\"-\"&AN11,#REF!,0),4),\"\")","v":""},{"$f":"IFERROR(INDEX(入力!$I$17:$L$36,MATCH($A$11&\"-\"&AU11,#REF!,0),3),\"\")","v":""},null,null,"―",null,null,{"$f":"IFERROR(INDEX(入力!$I$17:$L$36,MATCH($A$11&\"-\"&AU11,#REF!,0),4),\"\")","v":""},"（　　　　　　　　　　　　　）"]
[null,null,null,null,"―",null,null,null,null,null,null,"―",null,null,null,null,null,null,"―",null,null,null,null,null,null,"―",null,null,null,null,null,null,"―",null,null,null,null,null,null,"―",null,null,null,null,null,null,"―",null,null,null,"（　　　　　　　　　　　　　）"]
["コ―ト",null,null,null,"―",null,null,null,null,null,null,"―",null,null,null,null,null,null,"―",null,null,null,null,null,null,"―",null,null,null,null,null,null,"―",null,null,null,null,null,null,"―",null,null,null,null,null,null,"―",null,null,null,"（　　　　　　　　　　　　　）"]
[null,"主　　　　　　　　　　（　　　　　）",null,null,null,null,null,null,"主　　　　　　　　　　（　　　　　）",null,null,null,null,null,null,"主　　　　　　　　　　（　　　　　）",null,null,null,null,null,null,"主　　　　　　　　　　（　　　　　）",null,null,null,null,null,null,"主　　　　　　　　　　（　　　　　）",null,null,null,null,null,null,"主　　　　　　　　　　（　　　　　）",null,null,null,null,null,null,"主　　　　　　　　　　（　　　　　）"]
[null,"副　　　　　　　　　　（　　　　　）",null,null,null,null,null,null,"副　　　　　　　　　　（　　　　　）",null,null,null,null,null,null,"副　　　　　　　　　　（　　　　　）",null,null,null,null,null,null,"副　　　　　　　　　　（　　　　　）",null,null,null,null,null,null,"副　　　　　　　　　　（　　　　　）",null,null,null,null,null,null,"副　　　　　　　　　　（　　　　　）",null,null,null,null,null,null,"副　　　　　　　　　　（　　　　　）"]
[{"$f":"IF(入力!$L$5=1,入力!J9,\"\")","v":"B"},null,null,null,{"$f":"IF(A17=\"\",\"\",1)","v":1},null,null,"回戦",null,null,null,{"$f":"IF(E17=\"\",\"\",E17+1)","v":2},null,null,"回戦",null,null,null,{"$f":"IF(L17=\"\",\"\",L17+1)","v":3},null,null,"回戦",null,null,null,{"$f":"IF(S17=\"\",\"\",S17+1)","v":4},null,null,"回戦",null,null,null,{"$f":"IF(Z17=\"\",\"\",Z17+1)","v":5},null,null,"回戦",null,null,null,{"$f":"IF(AG17=\"\",\"\",AG17+1)","v":6},null,null,"回戦",null,null,null,{"$f":"IF(AN17=\"\",\"\",AN17+1)","v":7},null,null,"回戦",{"$f":"IF(入力!$L$5=1,A17,\"\")","v":"B"}]
[null,{"$f":"IFERROR(INDEX(入力!$I$17:$L$36,MATCH($A$17&\"-\"&E17,#REF!,0),3),\"\")","v":""},null,null,"―",null,null,{"$f":"IFERROR(INDEX(入力!$I$17:$L$36,MATCH($A$17&\"-\"&E17,#REF!,0),4),\"\")","v":""},{"$f":"IFERROR(INDEX(入力!$I$17:$L$36,MATCH($A$17&\"-\"&L17,#REF!,0),3),\"\")","v":""},null,null,"―",null,null,{"$f":"IFERROR(INDEX(入力!$I$17:$L$36,MATCH($A$17&\"-\"&L17,#REF!,0),4),\"\")","v":""},{"$f":"IFERROR(INDEX(入力!$I$17:$L$36,MATCH($A$17&\"-\"&S17,#REF!,0),3),\"\")","v":""},null,null,"―",null,null,{"$f":"IFERROR(INDEX(入力!$I$17:$L$36,MATCH($A$17&\"-\"&S17,#REF!,0),4),\"\")","v":""},{"$f":"IFERROR(INDEX(入力!$I$17:$L$36,MATCH($A$17&\"-\"&Z17,#REF!,0),3),\"\")","v":""},null,null,"―",null,null,{"$f":"IFERROR(INDEX(入力!$I$17:$L$36,MATCH($A$17&\"-\"&Z17,#REF!,0),4),\"\")","v":""},{"$f":"IFERROR(INDEX(入力!$I$17:$L$36,MATCH($A$17&\"-\"&AG17,#REF!,0),3),\"\")","v":""},null,null,"―",null,null,{"$f":"IFERROR(INDEX(入力!$I$17:$L$36,MATCH($A$17&\"-\"&AG17,#REF!,0),4),\"\")","v":""},{"$f":"IFERROR(INDEX(入力!$I$17:$L$36,MATCH($A$17&\"-\"&AN17,#REF!,0),3),\"\")","v":""},null,null,"―",null,null,{"$f":"IFERROR(INDEX(入力!$I$17:$L$36,MATCH($A$17&\"-\"&AN17,#REF!,0),4),\"\")","v":""},{"$f":"IFERROR(INDEX(入力!$I$17:$L$36,MATCH($A$17&\"-\"&AU17,#REF!,0),3),\"\")","v":""},null,null,"―",null,null,{"$f":"IFERROR(INDEX(入力!$I$17:$L$36,MATCH($A$17&\"-\"&AU17,#REF!,0),4),\"\")","v":""},{"$f":"IF(入力!$L$5=1,\"ベストサポ―タ―賞\",\"\")","v":"ベストサポ―タ―賞"}]
[null,null,null,null,"―",null,null,null,null,null,null,"―",null,null,null,null,null,null,"―",null,null,null,null,null,null,"―",null,null,null,null,null,null,"―",null,null,null,null,null,null,"―",null,null,null,null,null,null,"―",null,null,null,{"$f":"IF(入力!$L$5=1,\"（　　　　　　　　　　高校）\",\"\")","v":"（　　　　　　　　　　高校）"}]
["コ―ト",null,null,null,"―",null,null,null,null,null,null,"―",null,null,null,null,null,null,"―",null,null,null,null,null,null,"―",null,null,null,null,null,null,"―",null,null,null,null,null,null,"―",null,null,null,null,null,null,"―"]
[null,"主　　　　　　　　　　（　　　　　）",null,null,null,null,null,null,"主　　　　　　　　　　（　　　　　）",null,null,null,null,null,null,"主　　　　　　　　　　（　　　　　）",null,null,null,null,null,null,"主　　　　　　　　　　（　　　　　）",null,null,null,null,null,null,"主　　　　　　　　　　（　　　　　）",null,null,null,null,null,null,"主　　　　　　　　　　（　　　　　）",null,null,null,null,null,null,"主　　　　　　　　　　（　　　　　）"]
[null,"副　　　　　　　　　　（　　　　　）",null,null,null,null,null,null,"副　　　　　　　　　　（　　　　　）",null,null,null,null,null,null,"副　　　　　　　　　　（　　　　　）",null,null,null,null,null,null,"副　　　　　　　　　　（　　　　　）",null,null,null,null,null,null,"副　　　　　　　　　　（　　　　　）",null,null,null,null,null,null,"副　　　　　　　　　　（　　　　　）",null,null,null,null,null,null,"副　　　　　　　　　　（　　　　　）",null,null,null,null,null,null,"優秀選手賞"]
[{"$f":"IF(入力!$L$5=1,A17,\"\")","v":"B"},null,null,null,{"$f":"IF($A$17=$A$23,7,\"\")","v":7},null,null,"回戦",null,null,null,{"$f":"IF(E23=\"\",\"\",E23+1)","v":8},null,null,"回戦",null,null,null,{"$f":"IF(E23=\"\",\"\",E23+2)","v":9},null,null,"回戦",null,null,null,{"$f":"IF(E23=\"\",\"\",E23+3)","v":10},null,null,"回戦",null,null,null,null,null,null,"回戦",null,null,null,null,null,null,"回戦",null,null,null,null,null,null,"回戦","（　　　　　　　　　　　　　）"]
[null,{"$f":"IFERROR(INDEX(入力!$I$17:$L$36,MATCH($A$23&\"-\"&E23,#REF!,0),3),\"\")","v":""},null,null,"―",null,null,{"$f":"IFERROR(INDEX(入力!$I$17:$L$36,MATCH($A$23&\"-\"&E23,#REF!,0),4),\"\")","v":""},{"$f":"IFERROR(INDEX(入力!$I$17:$L$36,MATCH($A$23&\"-\"&L23,#REF!,0),3),\"\")","v":""},null,null,"―",null,null,{"$f":"IFERROR(INDEX(入力!$I$17:$L$36,MATCH($A$23&\"-\"&L23,#REF!,0),4),\"\")","v":""},{"$f":"IFERROR(INDEX(入力!$I$17:$L$36,MATCH($A$23&\"-\"&S23,#REF!,0),3),\"\")","v":""},null,null,"―",null,null,{"$f":"IFERROR(INDEX(入力!$I$17:$L$36,MATCH($A$23&\"-\"&S23,#REF!,0),4),\"\")","v":""},{"$f":"IFERROR(INDEX(入力!$I$17:$L$36,MATCH($A$23&\"-\"&Z23,#REF!,0),3),\"\")","v":""},null,null,"―",null,null,{"$f":"IFERROR(INDEX(入力!$I$17:$L$36,MATCH($A$23&\"-\"&Z23,#REF!,0),4),\"\")","v":""},{"$f":"IFERROR(INDEX(入力!$I$17:$L$36,MATCH($A$23&\"-\"&AG23,#REF!,0),3),\"\")","v":""},null,null,"―",null,null,{"$f":"IFERROR(INDEX(入力!$I$17:$L$36,MATCH($A$23&\"-\"&AG23,#REF!,0),4),\"\")","v":""},{"$f":"IFERROR(INDEX(入力!$I$17:$L$36,MATCH($A$23&\"-\"&AN23,#REF!,0),3),\"\")","v":""},null,null,"―",null,null,{"$f":"IFERROR(INDEX(入力!$I$17:$L$36,MATCH($A$23&\"-\"&AN23,#REF!,0),4),\"\")","v":""},{"$f":"IFERROR(INDEX(入力!$I$17:$L$36,MATCH($A$23&\"-\"&AU23,#REF!,0),3),\"\")","v":""},null,null,"―",null,null,{"$f":"IFERROR(INDEX(入力!$I$17:$L$36,MATCH($A$23&\"-\"&AU23,#REF!,0),4),\"\")","v":""},"（　　　　　　　　　　　　　）"]
[null,null,null,null,"―",null,null,null,null,null,null,"―",null,null,null,null,null,null,"―",null,null,null,null,null,null,"―",null,null,null,null,null,null,"―",null,null,null,null,null,null,"―",null,null,null,null,null,null,"―",null,null,null,"（　　　　　　　　　　　　　）"]
["コ―ト",null,null,null,"―",null,null,null,null,null,null,"―",null,null,null,null,null,null,"―",null,null,null,null,null,null,"―",null,null,null,null,null,null,"―",null,null,null,null,null,null,"―",null,null,null,null,null,null,"―",null,null,null,"（　　　　　　　　　　　　　）"]
[null,"主　　　　　　　　　　（　　　　　）",null,null,null,null,null,null,"主　　　　　　　　　　（　　　　　）",null,null,null,null,null,null,"主　　　　　　　　　　（　　　　　）",null,null,null,null,null,null,"主　　　　　　　　　　（　　　　　）",null,null,null,null,null,null,"主　　　　　　　　　　（　　　　　）",null,null,null,null,null,null,"主　　　　　　　　　　（　　　　　）",null,null,null,null,null,null,"主　　　　　　　　　　（　　　　　）"]
[null,"副　　　　　　　　　　（　　　　　）",null,null,null,null,null,null,"副　　　　　　　　　　（　　　　　）",null,null,null,null,null,null,"副　　　　　　　　　　（　　　　　）",null,null,null,null,null,null,"副　　　　　　　　　　（　　　　　）",null,null,null,null,null,null,"副　　　　　　　　　　（　　　　　）",null,null,null,null,null,null,"副　　　　　　　　　　（　　　　　）",null,null,null,null,null,null,"副　　　　　　　　　　（　　　　　）"]
[]
[null,{"$f":"IF(入力!$L$5=1,A5,\"\")","v":"A"},null,null,null,null,null,null,null,null,null,null,null,null,null,null,null,null,null,null,null,null,null,null,null,null,null,null,null,{"$f":"IF(入力!$L$5=1,A17,\"\")","v":"B"}]
[null,{"$f":"IF(入力!$L$5=1,\"１位　　　　　　　　　　　　　　　　　　　高校\",\"\")","v":"１位　　　　　　　　　　　　　　　　　　　高校"},null,null,null,null,null,null,null,null,null,null,null,null,null,null,null,null,null,null,null,null,null,null,null,null,null,null,null,{"$f":"IF(入力!$L$5=1,\"１位　　　　　　　　　　　　　　　　　　　高校\",\"\")","v":"１位　　　　　　　　　　　　　　　　　　　高校"}]
[null,{"$f":"IF(入力!$L$5=1,\"2位　　　　　　　　　　　　　　　　　　　高校\",\"\")","v":"2位　　　　　　　　　　　　　　　　　　　高校"},null,null,null,null,null,null,null,null,null,null,null,null,null,null,null,null,null,null,null,null,null,null,null,null,null,null,null,{"$f":"IF(入力!$L$5=1,\"2位　　　　　　　　　　　　　　　　　　　高校\",\"\")","v":"2位　　　　　　　　　　　　　　　　　　　高校"}]
[null,{"$f":"IF(入力!$L$5=1,\"3位　　　　　　　　　　　　　　　　　　　高校\",\"\")","v":"3位　　　　　　　　　　　　　　　　　　　高校"},null,null,null,null,null,null,null,null,null,null,null,null,null,null,null,null,null,null,null,null,null,null,null,null,null,null,null,{"$f":"IF(入力!$L$5=1,\"3位　　　　　　　　　　　　　　　　　　　高校\",\"\")","v":"3位　　　　　　　　　　　　　　　　　　　高校"}]
[null,{"$f":"IF(入力!$L$5=1,\"4位　　　　　　　　　　　　　　　　　　　高校\",\"\")","v":"4位　　　　　　　　　　　　　　　　　　　高校"},null,null,null,null,null,null,null,null,null,null,null,null,null,null,null,null,null,null,null,null,null,null,null,null,null,null,null,{"$f":"IF(入力!$L$5=1,\"4位　　　　　　　　　　　　　　　　　　　高校\",\"\")","v":"4位　　　　　　　　　　　　　　　　　　　高校"}]
[null,{"$f":"IF(入力!$L$5=1,\"5位　　　　　　　　　　　　　　　　　　　高校\",\"\")","v":"5位　　　　　　　　　　　　　　　　　　　高校"},null,null,null,null,null,null,null,null,null,null,null,null,null,null,null,null,null,null,null,null,null,null,null,null,null,null,null,{"$f":"IF(入力!$L$5=1,\"5位　　　　　　　　　　　　　　　　　　　高校\",\"\")","v":"5位　　　　　　　　　　　　　　　　　　　高校"}]

{"sheet":"構成メンバー表（小）","index":4,"n_rows":92,"n_cols":98,"rows_kept":92,"cut":false,"hidden":true,"merged":[[89,51,90,68],[91,0,92,22],[91,23,92,45],[91,46,92,68],[91,69,92,91],[91,92,92,114],[97,0,98,22],[97,23,98,45],[97,46,98,68],[97,69,98,91],[97,92,98,114],[93,0,94,22],[93,23,94,45],[93,46,94,68],[93,69,94,91],[93,92,94,114],[95,0,96,22],[95,23,96,45],[95,46,96,68],[95,69,96,91],[95,92,96,114],[89,69,90,73],[89,74,90,91],[89,92,90,96],[85,0,86,22],[85,23,86,45],[85,46,86,68],[85,69,86,91],[85,92,86,114],[87,0,88,4],[87,5,88,22],[87,23,88,27],[87,28,88,45],[87,46,88,50],[87,51,88,68],[87,69,88,73],[87,74,88,91],[87,92,88,96],[87,97,88,114],[89,97,90,114],[89,0,90,4],[89,5,90,22],[89,23,90,27],[89,28,90,45],[89,46,90,50],[54,92,56,96],[54,97,56,114],[77,0,78,4],[77,5,78,22],[77,23,78,27],[77,28,78,45],[77,46,78,50],[77,51,78,68],[77,69,78,73],[77,74,78,91],[77,92,78,96],[77,97,78,114],[75,0,76,4],[75,5,76,22],[75,23,76,27],[75,28,76,45],[54,0,56,4],[54,5,56,22],[54,23,56,27],[54,28,56,45],[54,46,56,50],[54,51,56,68],[54,69,56,73],[54,74,56,91],[83,0,84,4],[83,5,84,22],[83,23,84,27],[83,28,84,45],[83,46,84,50],[83,51,84,68],[79,46,80,50],[79,51,80,68],[50,69,50,72],[75,46,76,50],[75,51,76,68],[73,0,74,4],[73,5,74,22],[73,23,74,27],[73,28,74,45],[73,46,74,50],[73,51,74,68],[73,69,74,73],[50,97,50,114],[51,0,53,3],[51,5,53,22],[51,23,53,26],[51,28,53,45],[51,46,53,49],[51,51,53,68],[50,0,50,3],[50,5,50,22],[50,23,50,26],[50,28,50,45],[50,46,50,49],[50,51,50,68],[51,92,53,95],[51,97,53,114],[45,46,46,68],[47,46,48,68],[43,69,44,91],[45,69,46,91],[47,69,48,91],[50,74,50,91],[50,92,50,95],[43,23,44,45],[45,23,46,45],[41,0,42,22],[41,23,42,45],[41,46,42,68],[41,69,42,91],[41,92,42,114],[79,92,80,96],[79,97,80,114],[81,0,82,4],[81,5,82,22],[81,23,82,27],[81,28,82,45],[81,46,82,50],[81,51,82,68],[79,0,80,4],[79,5,80,22],[79,23,80,27],[79,28,80,45],[43,92,44,114],[45,92,46,114],[47,92,48,114],[73,74,74,91],[65,92,66,96],[47,23,48,45],[43,46,44,68],[67,0,68,4],[67,5,68,22],[67,23,68,27],[67,28,68,45],[67,46,68,50],[67,51,68,68],[73,97,74,114],[69,23,70,27],[69,28,70,45],[71,23,72,27],[71,28,72,45],[69,0,70,4],[69,5,70,22],[71,0,72,4],[71,5,72,22],[71,97,72,114],[69,97,70,114],[67,74,68,91],[67,92,68,96],[67,97,68,114],[67,69,68,73],[63,97,64,114],[65,0,66,4],[65,5,66,22],[65,23,66,27],[65,28,66,45],[65,46,66,50],[65,51,66,68],[65,69,66,73],[63,0,64,4],[63,5,64,22],[63,23,64,27],[63,28,64,45],[63,46,64,50],[63,51,64,68],[65,97,66,114],[57,97,58,114],[57,0,58,4],[57,5,58,22],[57,23,58,27],[57,28,58,45],[57,46,58,50],[61,0,62,4],[61,5,62,22],[61,23,62,27],[61,28,62,45],[61,46,62,50],[61,51,62,68],[59,69,60,73],[59,74,60,91],[59,92,60,96],[61,97,62,114],[33,92,34,96],[33,97,34,114],[35,92,36,114],[37,92,38,96],[37,97,38,114],[21,92,22,96],[21,97,22,114],[23,92,24,96],[23,97,24,114],[25,92,26,96],[25,97,26,114],[11,92,12,96],[11,97,12,114],[13,92,14,96],[13,97,14,114],[15,92,16,96],[15,97,16,114],[37,69,38,73],[37,74,38,91],[11,69,12,73],[11,74,12,91],[29,97,30,114],[29,92,30,96],[27,92,28,96],[27,97,28,114],[21,69,22,73],[19,97,20,114],[19,69,20,73],[19,74,20,91],[21,74,22,91],[19,92,20,96],[17,92,18,96],[17,97,18,114],[31,92,32,96],[31,97,32,114],[11,46,12,50],[11,51,12,68],[13,46,14,50],[13,51,14,68],[39,69,40,73],[39,74,40,91],[0,92,0,95],[0,97,0,114],[1,92,3,95],[1,97,3,114],[4,92,6,96],[4,97,6,114],[23,69,24,73],[23,74,24,91],[25,69,26,73],[25,74,26,91],[27,69,28,73],[27,74,28,91],[13,69,14,73],[13,74,14,91],[15,69,16,73],[15,74,16,91],[17,69,18,73],[17,74,18,91],[15,46,16,50],[15,51,16,68],[4,46,6,50],[4,51,6,68],[7,46,8,50],[7,51,8,68],[9,46,10,50],[9,51,10,68],[73,92,74,96],[71,74,72,91],[71,92,72,96],[71,46,72,50],[71,51,72,68],[71,69,72,73],[69,74,70,91],[69,92,70,96],[69,51,70,68],[69,69,70,73],[69,46,70,50],[29,51,30,68],[31,51,32,68],[19,51,20,68],[21,51,22,68],[17,51,18,68],[83,97,84,114],[83,69,84,73],[83,74,84,91],[83,92,84,96],[79,69,80,73],[79,74,80,91],[81,69,82,73],[81,74,82,91],[75,97,76,114],[75,74,76,91],[75,92,76,96],[75,69,76,73],[81,92,82,96],[81,97,82,114],[37,0,38,4],[37,5,38,22],[37,23,38,27],[37,28,38,45],[63,74,64,91],[63,92,64,96],[63,69,64,73],[65,74,66,91],[61,74,62,91],[61,92,62,96],[51,74,53,91],[39,92,40,96],[61,69,62,73],[39,5,40,22],[59,51,60,68],[57,51,58,68],[57,69,58,73],[57,74,58,91],[43,0,44,22],[37,46,38,50],[37,51,38,68],[57,92,58,96],[45,0,46,22],[47,0,48,22],[39,97,40,114],[59,97,60,114],[59,0,60,4],[59,5,60,22],[59,23,60,27],[59,28,60,45],[59,46,60,50],[33,23,34,27],[33,28,34,45],[33,0,34,4],[33,5,34,22],[35,0,36,22],[35,23,36,45],[33,46,34,50],[33,51,34,68],[51,69,53,72],[39,46,40,50],[39,51,40,68],[35,69,36,91],[33,69,34,73],[33,74,34,91],[39,23,40,27],[39,28,40,45],[39,0,40,4],[31,0,32,4],[31,5,32,22],[31,23,32,27],[31,28,32,45],[29,0,30,4],[29,5,30,22],[29,23,30,27],[29,28,30,45],[29,46,30,50],[31,46,32,50],[19,0,20,4],[19,5,20,22],[19,46,20,50],[21,46,22,50],[27,5,28,22],[27,23,28,27],[27,28,28,45],[25,5,26,22],[25,23,26,27],[25,28,26,45],[25,0,26,4],[27,0,28,4],[23,23,24,27],[23,28,24,45],[23,0,24,4],[23,5,24,22],[7,28,8,45],[35,46,36,68],[23,46,24,50],[23,51,24,68],[13,0,14,4],[13,5,14,22],[13,23,14,27],[13,28,14,45],[11,0,12,4],[11,5,12,22],[11,23,12,27],[11,28,12,45],[15,23,16,27],[15,28,16,45],[17,0,18,4],[17,5,18,22],[17,23,18,27],[17,28,18,45],[15,0,16,4],[21,28,22,45],[19,23,20,27],[19,28,20,45],[21,0,22,4],[21,5,22,22],[31,69,32,73],[31,74,32,91],[1,0,3,3],[0,28,0,45],[1,23,3,26],[1,28,3,45],[0,0,0,3],[0,46,0,49],[0,51,0,68],[1,46,3,49],[1,51,3,68],[29,69,30,73],[29,74,30,91],[25,51,26,68],[27,51,28,68],[25,46,26,50],[27,46,28,50],[9,0,10,4],[9,5,10,22],[9,23,10,27],[9,28,10,45],[15,5,16,22],[17,46,18,50],[21,23,22,27],[7,92,8,96],[7,97,8,114],[9,92,10,96],[4,5,6,22],[4,23,6,27],[4,28,6,45],[4,0,6,4],[1,5,3,22],[0,5,0,22],[0,23,0,26],[0,69,0,72],[0,74,0,91],[1,69,3,72],[1,74,3,91],[4,69,6,73],[4,74,6,91],[7,69,8,73],[7,74,8,91],[9,69,10,73],[9,74,10,91],[9,97,10,114],[7,0,8,4],[7,5,8,22],[7,23,8,27]]}
["AorB",null,null,null,null,"チーム名",null,null,null,null,null,null,null,null,null,null,null,null,null,null,null,null,null,"AorB",null,null,null,null,"チーム名",null,null,null,null,null,null,null,null,null,null,null,null,null,null,null,null,null,"AorB",null,null,null,null,"チーム名",null,null,null,null,null,null,null,null,null,null,null,null,null,null,null,null,null,"AorB",null,null,null,null,"チーム名",null,null,null,null,null,null,null,null,null,null,null,null,null,null,null,null,null,"AorB",null,null,null,null,"チーム名"]
[]
[]
[]
["番号",null,null,null,null,"氏　名",null,null,null,null,null,null,null,null,null,null,null,null,null,null,null,null,null,"番号",null,null,null,null,"氏　名",null,null,null,null,null,null,null,null,null,null,null,null,null,null,null,null,null,"番号",null,null,null,null,"氏　名",null,null,null,null,null,null,null,null,null,null,null,null,null,null,null,null,null,"番号",null,null,null,null,"氏　名",null,null,null,null,null,null,null,null,null,null,null,null,null,null,null,null,null,"番号",null,null,null,null,"氏　名"]
[]
[]
[]
[]
[]
[]
[]
[]
[]
[]
[]
[]
[]
[]
[]
[]
[]
[]
[]
[]
[]
[]
[]
[]
[]
[]
[]
[]
[]
[]
["リ　ベ　ロ",null,null,null,null,null,null,null,null,null,null,null,null,null,null,null,null,null,null,null,null,null,null,"リ　ベ　ロ",null,null,null,null,null,null,null,null,null,null,null,null,null,null,null,null,null,null,null,null,null,null,"リ　ベ　ロ",null,null,null,null,null,null,null,null,null,null,null,null,null,null,null,null,null,null,null,null,null,null,"リ　ベ　ロ",null,null,null,null,null,null,null,null,null,null,null,null,null,null,null,null,null,null,null,null,null,null,"リ　ベ　ロ"]
[]
[]
[]
[]
[]
["チームスタッフ",null,null,null,null,null,null,null,null,null,null,null,null,null,null,null,null,null,null,null,null,null,null,"チームスタッフ",null,null,null,null,null,null,null,null,null,null,null,null,null,null,null,null,null,null,null,null,null,null,"チームスタッフ",null,null,null,null,null,null,null,null,null,null,null,null,null,null,null,null,null,null,null,null,null,null,"チームスタッフ",null,null,null,null,null,null,null,null,null,null,null,null,null,null,null,null,null,null,null,null,null,null,"チームスタッフ"]
[]
[]
[]
[]
[]
[]
[]
[]
["AorB",null,null,null,null,"チーム名",null,null,null,null,null,null,null,null,null,null,null,null,null,null,null,null,null,"AorB",null,null,null,null,"チーム名",null,null,null,null,null,null,null,null,null,null,null,null,null,null,null,null,null,"AorB",null,null,null,null,"チーム名",null,null,null,null,null,null,null,null,null,null,null,null,null,null,null,null,null,"AorB",null,null,null,null,"チーム名",null,null,null,null,null,null,null,null,null,null,null,null,null,null,null,null,null,"AorB",null,null,null,null,"チーム名"]
[]
[]
[]
["番号",null,null,null,null,"氏　名",null,null,null,null,null,null,null,null,null,null,null,null,null,null,null,null,null,"番号",null,null,null,null,"氏　名",null,null,null,null,null,null,null,null,null,null,null,null,null,null,null,null,null,"番号",null,null,null,null,"氏　名",null,null,null,null,null,null,null,null,null,null,null,null,null,null,null,null,null,"番号",null,null,null,null,"氏　名",null,null,null,null,null,null,null,null,null,null,null,null,null,null,null,null,null,"番号",null,null,null,null,"氏　名"]
[]
[]
[]
[]
[]
[]
[]
[]
[]
[]
[]
[]
[]
[]
[]
[]
[]
[]
[]
[]
[]
[]
[]
[]
[]
[]
[]
[]
[]
[]
["リ　ベ　ロ",null,null,null,null,null,null,null,null,null,null,null,null,null,null,null,null,null,null,null,null,null,null,"リ　ベ　ロ",null,null,null,null,null,null,null,null,null,null,null,null,null,null,null,null,null,null,null,null,null,null,"リ　ベ　ロ",null,null,null,null,null,null,null,null,null,null,null,null,null,null,null,null,null,null,null,null,null,null,"リ　ベ　ロ",null,null,null,null,null,null,null,null,null,null,null,null,null,null,null,null,null,null,null,null,null,null,"リ　ベ　ロ"]
[]
[]
[]
[]
[]
["チームスタッフ",null,null,null,null,null,null,null,null,null,null,null,null,null,null,null,null,null,null,null,null,null,null,"チームスタッフ",null,null,null,null,null,null,null,null,null,null,null,null,null,null,null,null,null,null,null,null,null,null,"チームスタッフ",null,null,null,null,null,null,null,null,null,null,null,null,null,null,null,null,null,null,null,null,null,null,"チームスタッフ",null,null,null,null,null,null,null,null,null,null,null,null,null,null,null,null,null,null,null,null,null,null,"チームスタッフ"]